Cogmind - Beta 15 @@@ ROGUE MODE // 2025.07.03 @ 18:53:12 Player: McSaucyNugget Result: Establishing Free Derelict Territories! Performance ------------- Evolutions (9) 4500 Regions Visited (32) 6400 Robots Destroyed (310) 1550 Value Destroyed (15439) 15439 Prototype IDs (40) 800 Alien Tech Used (6) 1200 Bonus (35556) 35556 TOTAL SCORE: 65445 Bonus ------- High Alert Combat Kills 1135 Follower Combat Kills 1979 Awakened Behemoth Slayer 1000 Network Hubs Disabled 200 Met Zhirov 300 Met Warlord at Base 500 MAIN.C Attacked Warlord 500 Warlord Defense Kills 2032 Built Enhanced Grunts 300 A7 Reached Mainframe 300 Met R17 at Cetus 500 Met R17 at Research 2000 Destroyed MAIN.C Guards 500 Met MAIN.C 5000 Hacked MAIN.C 300 Destroyed MAIN.C Shell 5000 Destroyed MAIN.C 10000 Met Warlord at Command 2000 Win 3000 Friendly Fire -990 Cogmind --------- Core Integrity 811/1600 Matter 238/300 Energy 590/590 System Corruption 40% Temperature Cool (-200) Movement Rolling (145) Ox3 Location Free Derelict Territories Parts ------- > --- POWER (3) -------- Particle Reactor Quantum Reactor > --- PROPULSION (6) --- Medium Treads Biometal Heavy Treads Compact Wheel Compact Wheel Compact Wheel > --- UTILITY (13) ----- Advanced Cryofiber Web Advanced Heat Sink Improved Cooling System Huge Storage Unit Experimental Optical Array Improved Targeting Computer Force Booster Phase Shifter Hardened Heavy Armor Plating Layered Medium Armor Plating Layered Medium Armor Plating > --- WEAPON (3) ------- Advanced Remote Datajack Sigix Broadsword > --- INVENTORY (25) --- Light Quantum Reactor Improved Medium Treads Improved Medium Treads Wheel Advanced Cryofiber Web Advanced Energy Well (500) Improved Matter Compressor (102) Matter Filter Layered Medium Armor Plating Improved Point Defense System Advanced Point Defense System Transdimensional Reconstructor Subatomic Replicator Compact HERF Cannon Compact HERF Cannon Enhanced Nova Cannon Core Cannon Enhanced Hardcell Cannon Enhanced Hardcell Cannon Ragnarok Missile Launcher Peak State ------------ > --- POWER ------------ Quantum Reactor Improved Quantum Reactor Improved Quantum Reactor > --- PROPULSION ------- Biometal Heavy Treads Biometal Heavy Treads Biometal Heavy Treads > --- UTILITY ---------- Advanced Cryofiber Web Advanced Heat Sink Huge Storage Unit Experimental Optical Array Advanced Sensor Array Advanced Signal Interpreter Improved Targeting Computer Advanced Target Analyzer Quantum Capacitor Centrium Light Armor Plating Improved Hacking Suite Improved System Shield > --- WEAPON ----------- Compact HERF Cannon Sigix Broadsword > --- INVENTORY -------- Quantum Reactor Quantum Reactor Quantum Reactor Biometal Heavy Treads Biometal Heavy Treads Advanced Energy Well Layered Medium Armor Plating Layered Heavy Armor Plating Centrium Light Armor Plating Improved Point Defense System Advanced Point Defense System Transdimensional Reconstructor Subatomic Replicator Compact HERF Cannon Compact HERF Cannon Enhanced Nova Cannon Core Cannon Enhanced Hardcell Cannon Enhanced Hardcell Cannon Ragnarok Missile Launcher Advanced Remote Datajack [Rating: 214] Favorites ----------- Power Quantum Reactor Engine Improved Deuterium Engine Power Core Fission Core Reactor Quantum Reactor Propulsion Centrium Heavy Treads Treads Centrium Heavy Treads Leg Improved Thunder Leg Wheel Compact Wheel Hover Unit Backup Propulsion III Flight Unit Cesium-ion Thruster Utility Huge Storage Unit Device Improved Cooling System Storage Huge Storage Unit Processor Improved Signal Interpreter Hackware Improved Hacking Suite Protection Centrium Medium Armor Plating Weapon Sigix Broadsword Energy Gun Enhanced Quantum Rifle Energy Cannon Compact HERF Cannon Ballistic Gun Precision Assault Rifle Ballistic Cannon Enhanced Gauss Cannon Launcher Improved Grenade Launcher Special Weapon Remote Datajack Impact Weapon Power Maul Slashing Weapon Sigix Broadsword Piercing Weapon CR-A16's Pointy Stick Build | -11 -10 -10 -10 -9 -8 -7 -7 -7 -7 -7 -7 -6 -6 -6 -6 -6 -6 -5 -5 -5 -5 -4 -4 -4 -4 -4 -3 -3 -3 -2 -1 -1 ------- Run | Yrd Mat Min Exi Min Mat Fac Was Fac Low Low Zio Pro Fac Ext Cet Arc Hub Fac Upp Upp War Pro Fac Upp Upp Zhi Pro Res Qua Res Acc Com Slots Evolved 18 | . . . . . 4 2 . . . . . . 2 . . . . 2 . . . . 2 . . . . 2 . 2 2 . Power 2 | . . . . . . . . . . . . . . . . . . . . . . . 1 . . . . . . 1 . . Propulsion 4 | . . . . . 2 . . . . . . . 1 . . . . 1 . . . . . . . . . . . . . . Utility 11 | . . . . . 2 1 . . . . . . 1 . . . . 1 . . . . 1 . . . . 2 . 1 2 . Weapon 1 | . . . . . . 1 . . . . . . . . . . . . . . . . . . . . . . . . . . Parts Attached 289 | 7 7 3 . 3 14 7 13 18 . 2 1 3 9 27 4 5 6 15 1 1 8 8 15 . 2 2 2 24 24 13 19 26 Power 30 | . 1 1 . 1 . 1 1 1 . . . 1 . 3 1 . 1 2 . . . . 3 . . 1 . 2 2 4 2 2 Engine 4 | . 1 1 . . . . 1 1 . . . . . . . . . . . . . . . . . . . . . . . . Core 9 | . . . . 1 . 1 . . . . . 1 . 3 . . . 1 . . . . 1 . . 1 . . . . . . Reactor 17 | . . . . . . . . . . . . . . . 1 . 1 1 . . . . 2 . . . . 2 2 4 2 2 Propulsion 72 | 3 2 . . 1 2 1 8 5 . 2 . . 4 6 1 1 1 3 . . 1 2 2 . 1 . . 8 5 1 3 9 Treads 34 | 2 . . . . 2 1 . . . 1 . . 1 4 1 . 1 3 . . 1 1 2 . . . . . 5 1 3 5 Leg 8 | . . . . . . . . . . . . . 1 . . . . . . . . 1 . . . . . 6 . . . . Wheel 21 | 1 2 . . 1 . . 4 3 . 1 . . 2 2 . 1 . . . . . . . . . . . . . . . 4 Hover . | . . . . . . . . . . . . . . . . . . . . . . . . . . . . . . . . . Flight 9 | . . . . . . . 4 2 . . . . . . . . . . . . . . . . 1 . . 2 . . . . Utility 113 | 1 2 . . 1 6 3 1 7 . . 1 . 4 8 1 3 2 6 1 1 3 3 6 . . 1 2 11 10 7 8 14 Device 49 | . . . . . 3 . 1 2 . . 1 . 2 1 . 1 1 3 1 1 2 3 3 . . . 1 5 6 2 2 8 Storage 7 | 1 1 . . . . . . 1 . . . . . . . . . . . . . . . . . . . 2 . 1 . 1 Processor 11 | . . . . . . 1 . 2 . . . . . . . . . 1 . . . . 1 . . . 1 2 1 2 . . Hackware 17 | . . . . . . 1 . 2 . . . . 1 3 . 2 1 1 . . . . 1 . . 1 . . . . 4 . Protection 29 | . 1 . . 1 3 1 . . . . . . 1 4 1 . . 1 . . 1 . 1 . . . . 2 3 2 2 5 Artifact . | . . . . . . . . . . . . . . . . . . . . . . . . . . . . . . . . . Weapon 74 | 3 2 2 . . 6 2 3 5 . . . 2 1 10 1 1 2 4 . . 4 3 4 . 1 . . 3 7 1 6 1 Energy Gun 19 | 3 1 . . . 2 2 . . . . . 1 1 2 1 1 . 2 . . 2 1 . . . . . . . . . . Energy Cannon 15 | . . 1 . . . . . 1 . . . . . 2 . . 1 . . . . 2 2 . . . . 1 1 . 4 . Ballistic Gun 5 | . 1 . . . 1 . . 1 . . . . . . . . . 1 . . 1 . . . . . . . . . . . Ballistic Cannon 14 | . . . . . 1 . . 2 . . . . . 4 . . . . . . . . 1 . . . . 1 3 . 2 . Launcher 11 | . . 1 . . 2 . 2 1 . . . . . . . . 1 1 . . . . 1 . . . . . 1 1 . . Special Weapon 2 | . . . . . . . . . . . . . . 1 . . . . . . . . . . . . . . . . . 1 Impact Weapon 3 | . . . . . . . 1 . . . . . . . . . . . . . . . . . 1 . . . 1 . . . Slashing Weapon 3 | . . . . . . . . . . . . 1 . . . . . . . . . . . . . . . 1 1 . . . Piercing Weapon 2 | . . . . . . . . . . . . . . 1 . . . . . . 1 . . . . . . . . . . . Special Melee Weapon . | . . . . . . . . . . . . . . . . . . . . . . . . . . . . . . . . . Unidentified Prototypes 28 | . . . . . 2 . . 1 . . 1 . . . 3 . . . . . 1 6 . . . 1 . 2 6 3 1 1 Corrupted Parts 5 | . . . . . . . . . . . . . . 2 . . 1 . . . 1 . . . . . . . . . . 1 System Corruption 27 | . . . . . . . . . . . . . . 8 . . 2 . . . 5 . . . . . . . . . . 12 Parts Lost 78 | . . 1 . 1 2 . 5 3 . 1 . 5 1 7 . . 2 8 . . 1 1 16 . . . 1 1 1 2 3 16 Power 15 | . . 1 . . . . . . . . . 1 . 2 . . . 1 . . . . 4 . . . . 1 . . 1 4 Propulsion 27 | . . . . . . . 3 2 . 1 . 3 . 2 . . 2 2 . . 1 1 3 . . . 1 . . 1 1 4 Utility 19 | . . . . . 1 . . 1 . . . . . 1 . . . 2 . . . . 4 . . . . . 1 1 1 7 Weapon 17 | . . . . 1 1 . 2 . . . . 1 1 2 . . . 3 . . . . 5 . . . . . . . . 1 Highest Loss Streak 14 | . . 1 . 1 2 . 4 2 . 1 . 4 1 5 . . 2 3 . . 1 1 11 . . . 1 1 1 1 1 14 To Critical Strikes 1 | . . . . . . . . . . . . . . 1 . . . . . . . . . . . . . . . . . . Average Backups 20 | 2 10 20 22 23 23 24 13 10 23 22 24 22 24 24 23 22 20 20 21 21 22 24 22 3 3 3 4 13 21 21 20 19 Power 2 | 1 2 2 2 2 2 1 . . 2 2 3 2 2 1 1 1 2 2 3 3 3 3 1 . . . 1 1 2 2 2 2 Propulsion 2 | 1 2 6 7 7 5 5 2 2 4 2 1 . . 4 5 4 4 1 1 1 . . 1 1 1 . . 4 2 2 2 3 Utility 7 | . 1 5 5 6 9 11 6 3 8 9 9 10 11 10 8 8 7 7 9 10 9 9 8 1 1 1 1 5 8 8 5 5 Weapon 6 | . 4 6 8 7 6 5 3 3 8 9 10 10 10 7 7 6 6 7 6 6 9 10 9 1 1 1 1 1 6 5 6 6 Tool/Special . | . . . . . . . . . . . . . . . . . . . . . . . . . . . . . . . . . Unused Backups 128 | . 2 . . 1 7 5 16 3 . . 2 . 11 4 6 2 3 1 . . 2 1 9 . 1 1 . 14 12 7 7 11 Power 18 | . 1 . . . 2 1 2 . . . . . 1 . 1 . . . . . 1 . 1 . . . . 2 1 2 2 1 Propulsion 36 | . 1 . . 1 3 1 . . . . . . . . 2 1 2 . . . . . . . . 1 . 8 6 1 5 4 Utility 45 | . . . . . 2 1 10 . . . . . 6 2 2 1 1 1 . . 1 . 6 . . . . 1 4 3 . 4 Weapon 25 | . . . . . . 2 4 3 . . 2 . 4 2 1 . . . . . . 1 1 . 1 . . 3 . 1 . . Tool/Special 4 | . . . . . . . . . . . . . . . . . . . . . . . 1 . . . . . 1 . . 2 Average Slot Usage (%) 83 | . 94 99 100 99 98 96 68 78 92 91 91 81 80 91 82 85 85 87 78 81 85 86 81 6 7 17 25 85 78 81 80 61 Engine 2 | . 11 13 14 9 . . 2 7 7 7 7 2 . . . . . . . . . . . . . . . . . . . . Core 1 | . . . . 4 9 7 3 . . . . 4 6 5 . . . 1 . . . . 2 . . . . 2 . . . . Reactor 4 | . . . . . . . . . . . . . . . 5 6 6 3 5 5 5 5 6 . . . . 4 9 13 12 9 Treads 10 | . 10 . . . 17 15 1 . . 4 . . 1 12 6 6 6 22 17 17 22 20 17 . . . . . 14 17 14 9 Leg 1 | . . . . . . . . . . . . . 3 . . . . . . . . . . . . . . 20 1 . . . Wheel 8 | . 17 28 28 28 18 15 13 6 23 17 23 12 11 13 13 13 12 . . . . . . . . . . . . . . 2 Device 12 | . . . . . 11 10 7 10 15 15 14 15 13 5 13 12 13 13 17 16 14 16 18 . . . 2 13 19 16 14 12 Storage 5 | . 14 14 14 14 9 7 3 3 7 7 7 7 6 6 6 6 6 5 5 5 5 5 4 . . . . 3 4 4 4 4 Processor 7 | . . . . . . 5 3 7 7 7 7 7 6 5 . . . 4 5 5 5 5 4 5 5 5 7 13 9 15 16 10 Hackware 5 | . . . . . . 4 3 12 7 7 7 7 6 13 13 13 12 8 5 5 5 5 5 . . 1 5 4 1 . 7 . Protection 5 | . 11 14 14 14 14 6 3 . . . . . 3 7 6 6 6 5 5 5 7 6 4 . . . . 7 8 5 4 6 Energy Gun 3 | . 18 14 14 11 3 13 11 . . . . . 4 . 4 . . 5 7 11 8 5 3 . . . . . . . . . Energy Cannon 3 | . . . . 2 5 . . 2 7 7 7 6 1 2 9 8 12 5 . . 1 5 6 . . . . 3 . 3 3 3 Ballistic Gun 2 | . 9 13 14 14 4 . . 1 7 7 7 7 6 . . . . . 5 5 3 4 2 . . . . . . . . . Ballistic Cannon 2 | . . . . . 3 7 3 2 6 6 7 6 5 9 1 6 6 4 . . . . 2 1 . . . 2 3 . . . Slashing Weapon 1 | . . . . . . . . . . . . . . . . 2 . . . . . . . . . . . . 3 4 3 2 Peak Build Rating 214 | 5 10 10 10 16 39 41 40 55 51 54 51 52 71 64 91 98 104 120 102 104 128 126 140 13 17 30 39 143 175 195 214 214 Average Rating 99 | 3 8 9 10 12 25 36 27 42 50 51 50 50 63 58 82 94 95 113 97 102 117 121 127 6 9 20 31 116 159 189 204 157 On Entrance 65 | . 5 10 10 10 15 28 40 32 53 51 49 51 52 61 63 90 95 104 89 102 103 117 125 6 6 17 25 32 143 175 190 210 Naked Turns 95 | . . . . . . . 58 . . . . . . . . . . . . . . . 37 . . . . . . . . . Heaviest Build 205 | 9 91 91 91 95 112 113 102 114 114 114 113 114 118 126 138 138 139 136 126 126 135 142 160 . 10 3 4 149 157 169 187 205 Greatest Support 225 | 40 40 26 26 28 28 28 48 50 50 56 56 54 54 54 80 80 160 208 136 136 216 211 210 3 7 7 7 168 210 205 225 225 Greatest Overweight (x) 11 | . 3 3 3 3 3 4 5 3 2 4 2 4 11 4 3 3 8 . . . . . 1 . 3 . 1 1 2 . 1 7 Average Overweight (x) . | . 2 3 3 3 3 3 . . 2 2 1 3 2 2 2 2 1 . . . . . . . . . . . . . . . Largest Inventory Capacity 25 | 8 25 25 25 25 25 25 25 25 25 25 25 25 25 25 25 25 25 25 25 25 25 25 25 5 5 5 5 25 25 25 25 25 Average Capacity 23 | 6 19 25 25 25 25 25 13 14 25 25 25 25 25 25 25 25 25 25 25 25 25 25 24 5 5 5 5 18 25 25 25 25 Most Carried 25 | 5 19 22 22 25 25 25 25 22 24 25 25 25 25 25 25 25 25 25 25 25 25 25 25 5 5 5 5 25 25 25 25 25 Average Carried 21 | 2 10 20 22 24 24 24 13 10 23 22 24 22 24 24 24 24 24 23 24 24 23 24 23 4 4 4 5 14 24 24 24 22 Final Capacity 25 | 8 25 25 25 25 25 25 5 25 25 25 25 25 25 25 25 25 25 25 25 25 25 25 5 5 5 5 5 25 25 25 25 25 Final Carried 25 | 5 19 22 22 24 25 25 5 22 24 22 25 24 25 24 25 25 22 24 24 25 24 24 5 5 4 5 5 24 24 25 24 21 Class Distribution -------------------- 21% | Mutant 16% | Scavenger-Tank 16% | Skirmisher 5% | Commander-Tank 4% | Hacker-Assassin 4% | Infiltrator-Mutant 4% | Scavenger-Mutant 4% | Scavenger-Assassin 4% | Assassin Dominant Class ---------------- Mutant | -10/Materials Mutant | -10/Mines Mutant | -10/Exiles Mutant | -9/Mines Mutant | -8/Materials Gunner | -7/Factory Gunner | -7/Waste Hacker-Sprinter | -7/Factory Skirmisher | -7/Lower Caves Skirmisher | -7/Lower Caves Skirmisher | -7/Zion Skirmisher | -6/Proximity Caves Skirmisher | -6/Factory Hacker-Tank | -6/Extension Commander-Tank | -6/Cetus Commander-Mutant | -6/Archives Commander-Tank | -6/Hub_04(d) Scavenger-Tank | -5/Factory Scavenger-Mutant | -5/Upper Caves Scavenger-Tank | -5/Upper Caves Scavenger-Tank | -5/Warlord Scavenger-Tank | -4/Proximity Caves Scavenger-Tank | -4/Factory Mutant | -4/Upper Caves Mutant | -4/Upper Caves Mutant | -4/Zhirov Mutant | -3/Proximity Caves Infiltrator-Mutant | -3/Research Scavenger-Mutant | -3/Quarantine Assassin | -2/Research Hacker-Assassin | -1/Access Mutant | -1/Command Resources | -11 -10 -10 -10 -9 -8 -7 -7 -7 -7 -7 -7 -6 -6 -6 -6 -6 -6 -5 -5 -5 -5 -4 -4 -4 -4 -4 -3 -3 -3 -2 -1 -1 ----------- Run | Yrd Mat Min Exi Min Mat Fac Was Fac Low Low Zio Pro Fac Ext Cet Arc Hub Fac Upp Upp War Pro Fac Upp Upp Zhi Pro Res Qua Res Acc Com Matter Collected 9522 | 252 147 408 47 117 510 124 283 507 131 128 30 133 209 1071 155 184 212 753 63 44 386 157 309 138 40 89 159 351 803 210 519 853 Remotely 311 | . . . . . . . . . . . . . . . . . . . . . 180 . 131 . . . . . . . . . Salvage Created 15576 | . 243 165 . 201 803 . 277 813 162 335 . 119 244 845 65 344 515 1230 . . 903 157 650 89 . 89 6 494 1033 981 2860 1953 Parts 629 | . 16 15 . 29 40 . 4 25 7 9 . 4 10 29 2 20 33 57 . . 37 3 20 6 . 1 . 9 54 29 95 75 Haulers Intercepted 5 | . 1 . . . 1 . . . . . . . . . . . 1 2 . . . . . . . . . . . . . . Recyclers Shooed 8 | . . . . 1 . . . . . . . . 1 3 . . . . . . . . 1 . . . . . . . 1 1 Parts Field Recycled . | . . . . . . . . . . . . . . . . . . . . . . . . . . . . . . . . . Retrieved Matter . | . . . . . . . . . . . . . . . . . . . . . . . . . . . . . . . . . Parts Self-Destructed 19 | . . . . . . . . . 5 . . 4 . . . . . . . . . 3 . 7 . . . . . . . . Prevented 1 | . . . . . . . . . . . . . . . . . . . 1 . . . . . . . . . . . . . Kills | -11 -10 -10 -10 -9 -8 -7 -7 -7 -7 -7 -7 -6 -6 -6 -6 -6 -6 -5 -5 -5 -5 -4 -4 -4 -4 -4 -3 -3 -3 -2 -1 -1 ------- Run | Yrd Mat Min Exi Min Mat Fac Was Fac Low Low Zio Pro Fac Ext Cet Arc Hub Fac Upp Upp War Pro Fac Upp Upp Zhi Pro Res Qua Res Acc Com Combat Hostiles Destroyed 223 | . 3 4 . 3 18 . 1 11 5 3 . 6 2 11 1 1 5 25 . . 18 5 13 5 . . 1 2 15 12 36 17 Melee 8 | . . . . . . . . 1 . . . . . 1 . . . . . . . . . . . . 1 . 4 . . 1 Guns 34 | . 3 4 . 3 4 . . . 1 . . . . . . . . 9 . . 7 . 3 . . . . . . . . . Cannons 78 | . . . . . 7 . . 6 1 2 . . 2 10 . 1 3 5 . . 3 1 2 5 . . . 1 7 3 13 6 AOE 57 | . . . . . 6 . 1 4 3 1 . 6 . . . . 1 10 . . 7 4 7 . . . . . . . 4 3 Classes Destroyed 28 | . 4 1 . 3 3 . 1 2 1 . . 1 . 3 . . 2 1 . . 2 . 1 . . . . . 1 1 . 1 Worker 30 | . 2 2 . 2 1 . . 8 . . . . 1 . . . 2 3 . . . . 3 . . . . . . . 1 5 Builder 6 | . . . . 2 . . . . . . . . . . . . 1 . . . . . 1 . . . . 1 1 . . . Tunneler 4 | . 1 . . 1 . . . . . . . . . . . . . . . . . . 1 . . . . . . . 1 . Hauler 5 | . 1 . . . 1 . . . . . . . . . . . 1 2 . . . . . . . . . . . . . . Recycler 14 | . . . . 1 1 . . 2 . . . . 1 2 . . 1 1 . . . . . . . . . 2 1 . . 2 Mechanic 1 | . . . . . . . . . . . . . . . . . . . . . . . 1 . . . . . . . . . Operator 15 | . . . . . 1 . . 1 . . . . . 1 . 8 . . . . . . 1 . . . . . . . 3 . Drone 3 | . . . . . . . . . . . . 2 . . . . . . . . . . . . . . 1 . . . . . Watcher 9 | . . . . . . . . . . . . . . . . . . 1 . . . . 1 . . . . 1 1 1 3 1 Swarmer 39 | . . . . 2 3 . . 1 3 1 . . . 1 . . . 8 . . 1 5 1 5 . . . . . 1 7 . Saboteur 1 | . . . . . . . . . . . . . . . . . . . . . . . . . . . . . . . . 1 Grunt 77 | . 3 3 . 1 12 . . 7 2 1 . 4 2 3 . . . 6 . . 7 . 8 . . . . . 3 6 8 1 Brawler 6 | . . . . . 1 . . 2 . . . . . . . . . . . . 1 . . . . . . . . . 2 . Duelist 9 | . . . . . . . . . . . . . . . . . . 2 . . 4 . 1 . . . . . . . 1 1 Protector 3 | . . . . . . . . . . . . . . . . . . . . . 2 . . . . . . . . . 1 . Sentry 16 | . . . . . 2 . . . . 1 . . . 4 . 1 1 . . . . . . . . . . 1 . 2 4 . Specialist 3 | . . . . . . . . . . . . . . . . . 2 . . . 1 . . . . . . . . . . . Hunter 16 | . . . . . . . . . . . . . . 1 . . . 1 . . 1 . . . . . . 1 . . 6 6 Programmer 34 | . . . . . . . . 1 . . . . . . . . . 8 . . . . 3 . . . . . 11 . 7 4 Heavy 1 | . . . . . . . . . . . . . . . . . 1 . . . . . . . . . . . . . . . Behemoth 2 | . . . . . . . . . . . . . . 1 . . 1 . . . . . . . . . . . . . . . Compactor 1 | . . . . . . . 1 . . . . . . . . . . . . . . . . . . . . . . . . . Cetus Guard 1 | . . . . . . . . . . . . . . . 1 . . . . . . . . . . . . . . . . . M Guard 2 | . . . . . . . . . . . . . . . . . . . . . . . . . . . . . . . . 2 Combat Programmer 2 | . . . . . . . . . . . . . . . . . . . . . . . . . . . . . . . . 2 Striker 3 | . . . . . . . . . . . . . . . . . . . . . . . . . . . . . . 3 . . Executioner 1 | . . . . . . . . . . . . . . . . . . . . . 1 . . . . . . . . . . . Alpha 7 1 | . . . . . . . . . . . . . . . . . . . . . . . . . . . . . 1 . . . Packrat 2 | . . . . . . . . . . 2 . . . . . . . . . . . . . . . . . . . . . . Samaritan 4 | . . . . . . . . . 2 2 . . . . . . . . . . . . . . . . . . . . . . Assembled 1 | . . 1 . . . . . . . . . . . . . . . . . . . . . . . . . . . . . . Wasp 3 | . . . . . . . 2 1 . . . . . . . . . . . . . . . . . . . . . . . . Butcher 1 | . . . . . . . . . . . . . . 1 . . . . . . . . . . . . . . . . . . Martyr 1 | . . . . . . . . 1 . . . . . . . . . . . . . . . . . . . . . . . . Best Kill Streak 11 | . 2 3 . 6 6 . 1 5 3 3 . 4 2 2 1 2 3 7 . . 8 4 7 3 . . 1 3 4 5 11 7 Combat Bots Only 9 | . 2 3 . 2 6 . 1 5 3 3 . 4 2 2 1 1 2 5 . . 8 4 4 3 . . 1 1 3 5 9 7 Max Kills in Single Turn 5 | . 1 1 . 2 3 . 2 2 3 1 . 2 1 2 1 1 3 4 . . 3 2 5 1 . . 1 1 2 1 5 2 Gunslinging . | . . . . . . . . . . . . . . . . . . . . . . . . . . . . . . . . . Exploded 4 | . . . . . 3 . 1 2 2 1 . 2 . . . . 1 3 . . 3 2 2 . . . . . . . 4 2 Melee 1 | . . . . . . . . 1 . . . . . 1 . . . . . . . . . . . . 1 . 1 . . 1 Uniques/NPCs Destroyed . | . . . . . . . . . . . . . . . . . . . . . . . . . . . . . . . . . Combat | -11 -10 -10 -10 -9 -8 -7 -7 -7 -7 -7 -7 -6 -6 -6 -6 -6 -6 -5 -5 -5 -5 -4 -4 -4 -4 -4 -3 -3 -3 -2 -1 -1 -------- Run | Yrd Mat Min Exi Min Mat Fac Was Fac Low Low Zio Pro Fac Ext Cet Arc Hub Fac Upp Upp War Pro Fac Upp Upp Zhi Pro Res Qua Res Acc Com Hostile Shots Fired 1621 | . 7 25 . 18 48 . 7 55 12 31 . 20 16 145 45 4 50 143 . . 72 20 188 34 32 . 37 41 156 46 187 182 Missed 464 | . 2 6 . 5 12 . 1 21 2 15 . 6 3 48 17 3 10 43 . . 23 8 48 10 14 . 22 22 38 17 44 24 Intercepted 3 | . . . . . . . . . . . . . . . . . . . . . . . . . . . . . . . . 3 Hits 1157 | . 5 19 . 13 36 . 6 34 10 16 . 14 13 97 28 1 40 100 . . 49 12 140 24 18 . 15 19 118 29 143 158 Melee 19 | . . . . . . . 6 . . . . . . . . . . 4 . . 1 . 5 . . . . . . . 1 2 Projectile 1138 | . 5 19 . 13 36 . . 34 10 16 . 14 13 97 28 1 40 96 . . 48 12 135 24 18 . 15 19 118 29 142 156 AOE 23 | . . . . . . . . . . . . . . . . . . . . . 3 . . . . . . . . . . 20 Critical Strikes 79 | . . . . . . . 2 . 1 . . . 2 2 5 . . 6 . . 2 . 17 . 1 . . 1 14 3 5 18 Actively Blocked 1 | . . . . . . . . . . . . . . . . . . . . . . . . . . . . . . . . 1 Part Disruptions 6 | . . . . . . . . . . . . . . . . . . . . . . . 1 . . . . . 2 . 1 2 Actively Blocked 1 | . . . . . . . . . . . . . . . . . . . . . . . . . . . . . . . . 1 Damage Taken 27855 | . 102 289 . 98 560 . 419 463 157 131 . 325 210 1336 591 23 1070 2277 . . 1204 191 3052 407 364 . 301 601 2544 812 3438 6890 Core 3482 | . 12 41 . 7 13 . 249 135 57 11 . 45 16 151 39 . 102 96 . . 163 31 245 333 307 . 264 72 252 74 307 460 Absorbed by Shields 499 | . . . . . . . . . . . . . . 226 180 . . . . . . . . . . . . 62 31 . . . Reduced by Siege Mode 469 | . . . . . . . . . . . . . . . . . . 6 . . . . 5 . . . . . . 23 107 328 Redirected to Shielding 114 | . . . . . 11 . . . . . . . . . . . . . . . . . . . . . . . . . . 103 Ignored by Resistances 8 | . . . . . . . . . . . . . . 8 . . . . . . . . . . . . . . . . . . Regen/Repaired (Parts) 3365 | . . . . . . . . . . . . . 198 116 . . . . . . 343 . . . . . . . 657 190 1042 819 Core Remaining (%) 65 | 100 . . . 76 97 . . . . . . 29 . . . . 63 . . . . 71 . . . . . . 75 94 . 50 Volleys Fired 963 | . 22 24 . 25 59 . 10 28 12 46 1 20 27 85 15 7 11 68 . . 42 9 48 9 1 . . 20 42 46 184 102 Largest 3 | . 2 2 . 2 2 . 1 3 3 3 1 1 3 3 3 3 3 3 . . 3 3 3 1 1 . . 2 2 1 2 1 Hottest 394 | . 115 85 . 85 92 . 43 140 140 133 65 65 140 174 261 224 224 228 . . 240 168 250 55 55 . . 148 108 94 394 300 Shots Fired 1498 | . 42 46 . 50 104 . 10 49 22 54 1 20 45 132 42 18 30 177 1 1 100 17 114 9 1 . . 26 52 46 187 102 Gun 455 | . 42 44 . 48 47 . . 10 5 4 . . 30 5 14 . . 94 1 1 65 6 39 . . . . . . . . . Cannon 938 | . . . . 2 53 . . 37 14 47 1 13 15 84 28 18 29 75 . . 29 9 69 9 1 . . 26 52 46 185 96 Launcher 58 | . . 2 . . 4 . 10 2 3 3 . 7 . . . . 1 8 . . 6 2 6 . . . . . . . 2 2 Special 47 | . . . . . . . . . . . . . . 43 . . . . . . . . . . . . . . . . . 4 Kinetic 473 | . 16 22 . 25 49 . . 21 10 8 . 1 24 73 1 5 10 48 1 1 34 4 27 9 1 . . 15 40 . 13 15 Thermal 623 | . 26 22 . 25 38 . . 26 9 43 1 12 . 11 41 13 19 119 . . 31 7 77 . . . . . . . 71 32 Explosive 58 | . . 2 . . 4 . 10 2 3 3 . 7 . . . . 1 8 . . 6 2 6 . . . . . . . 2 2 Electromagnetic 291 | . . . . . 13 . . . . . . . 21 5 . . . 2 . . 29 2 . . . . . 11 12 46 101 49 Entropic 6 | . . . . . . . . . . . . . . . . . . . . . . 2 4 . . . . . . . . . Robot Hit Streak 21 | . 7 9 . 5 13 . 3 8 12 20 . 3 7 15 5 11 4 7 . . 10 3 15 4 . . . 4 8 9 21 16 Robot Miss Streak 8 | . 4 4 . 6 4 . . 2 1 2 . 2 3 5 3 1 2 8 . . 3 3 3 1 . . . 3 3 3 7 2 Penetration Max 1 | . . . . . . . . 1 . . . . . 1 . . . 1 . . 1 . . . . . . . . . . . Secondary Targets 3 | . . 2 . . . . . . . . . . . . . . . 1 . . . . . . . . . . . . . . Max Gunslinging Chain 1 | . . 1 . . . . . . . . . . . . . . . 1 . . . . . . . . . . . . . . Capacitor 307 | . . . . . . . . . . . . . . . . . . . . . . . . . . . . . 12 46 170 79 Shots Hit Robots 962 | . 22 24 . 22 67 . 2 44 19 30 . 3 25 84 24 26 16 92 . . 60 6 78 6 . 2 1 14 52 34 103 106 Core Hits 478 | . 11 11 . 11 35 . 10 22 9 14 . 15 11 20 8 7 18 59 . . 53 11 44 5 . . . 5 14 8 40 37 Critical Kills 9 | . . . . . 1 . . 1 . . . . . 3 1 . 1 1 . . . . . . . . . . . . 1 . Critical Parts Destroyed 18 | . . . . . . . . . . . . . . 8 . . . 7 . . 1 . . . . . 1 1 . . . . Critical Strikes 79 | . 1 2 . 1 2 . . 3 1 . . . 4 15 1 . 2 8 . . 2 1 3 1 . . 1 3 9 4 13 2 Burn 4 | . 1 2 . 1 . . . . . . . . . . . . . . . . . . . . . . . . . . . . Meltdown 4 | . . . . . 1 . . . . . . . . . 1 . 1 . . . . . . . . . . . . . 1 . Destroy 20 | . . . . . . . . . . . . . . 11 . . . 8 . . 1 . . . . . . . . . . . Blast 24 | . . . . . 1 . . 2 1 . . . 4 3 . . 1 . . . . . 2 1 . . . 1 6 . 1 1 Corrupt 19 | . . . . . . . . . . . . . . . . . . . . . 1 . . . . . . 1 1 4 11 1 Smash 3 | . . . . . . . . 1 . . . . . . . . . . . . . . . . . . 1 1 . . . . Sever 2 | . . . . . . . . . . . . . . . . . . . . . . . . . . . . . 2 . . . Impale 1 | . . . . . . . . . . . . . . 1 . . . . . . . . . . . . . . . . . . Sunder 2 | . . . . . . . . . . . . . . . . . . . . . . 1 1 . . . . . . . . . Melee Attacks 188 | . . . . . . . . 38 . . . . . 7 . 13 3 . . . 1 . . . . 2 4 16 43 . 23 38 Kinetic 3 | . . . . . . . . . . . . . . . . . . . . . . . . . . . . . 3 . . . Impact 57 | . . . . . . . . 38 . . . . . . . . . . . . . . . . . 2 4 13 . . . . Slashing 114 | . . . . . . . . . . . . . . . . 10 . . . . . . . . . . . 3 40 . 23 38 Piercing 14 | . . . . . . . . . . . . . . 7 . 3 3 . . . 1 . . . . . . . . . . . Sneak Attacks 34 | . . . . . . . . 11 . . . . . . . 9 . . . . . . . . . . 1 4 . . 2 7 Combat Hostiles 1 | . . . . . . . . . . . . . . . . . . . . . . . . . . . 1 . . . . . Follow-up Attacks 1 | . . . . . . . . . . . . . . . . . . . . . . . . . . . . . 1 . . . Damage Inflicted 45596 | . 283 411 . 332 1563 . 931 2519 786 1033 . 759 549 1530 772 1548 705 4421 . . 3527 494 4888 218 . 223 83 871 2838 1471 5664 7177 Guns 6097 | . 283 380 . 314 460 . . 122 93 76 . . 275 16 238 . . 1906 . . 1018 101 815 . . . . . . . . . Cannons 20518 | . . . . 18 663 . . 792 321 698 . . 274 1356 534 437 549 940 . . 533 217 2000 218 . . . 437 1608 1381 4510 3032 Explosions 10391 | . . 31 . . 440 . 931 528 372 259 . 759 . . . . 122 1466 . . 1976 176 2070 . . . . . . 90 831 340 Melee 8463 | . . . . . . . . 1077 . . . . . 158 . 1111 34 . . . . . . . . 223 83 434 1215 . 323 3805 Ramming 127 | . . . . . . . . . . . . . . . . . . 109 . . . . 3 . . . . . 15 . . . Kinetic 8012 | . 102 188 . 143 465 . . 526 224 183 . . 403 1101 28 116 163 566 . . 434 41 694 218 . . . 197 1259 . 502 459 Thermal 12603 | . 181 192 . 189 499 . . 388 190 591 . . . 255 744 321 386 2860 . . 584 60 2734 . . . . . . 90 984 1355 Explosive 8742 | . . 31 . . 410 . 931 528 372 259 . 759 . . . . 122 824 . . 1976 176 1255 . . . . . . . 759 340 Electromagnetic 7353 | . . . . . 189 . . . . . . . 146 16 . . . 62 . . 533 63 . . . . . 240 409 1381 3096 1218 Impact 1817 | . . . . . . . . 1077 . . . . . . . . . . . . . . . . . 223 83 434 . . . . Slashing 6327 | . . . . . . . . . . . . . . . . 1044 . . . . . . . . . . . . 1155 . 323 3805 Piercing 259 | . . . . . . . . . . . . . . 158 . 67 34 . . . . . . . . . . . . . . . Entropic 356 | . . . . . . . . . . . . . . . . . . . . . . 154 202 . . . . . . . . . Highest Corruption 40 | . . . . . . . . 1 1 1 1 . . 10 10 10 9 8 8 8 13 . 9 5 5 5 5 1 25 . 4 40 Average Corruption 7 | . . . . . . . . 1 1 1 1 . . 5 10 5 3 4 8 8 9 . 6 5 5 5 5 1 10 . 3 24 Corruption Purged 14 | . . . . . . . . . . . . . . . . 7 . . . . . . 5 . . . . . 2 . . . Corruption Blocked . | . . . . . . . . . . . . . . . . . . . . . . . . . . . . . . . . . Effects 301 | . . . . . . . . . 4 6 . . . 27 23 12 22 34 13 13 2 . 13 4 3 2 5 2 36 . 10 70 Message Errors 70 | . . . . . . . . . 1 3 . . . 9 6 2 3 10 2 4 . . 4 . . . 3 . 8 . 3 12 Matter Fused 70 | . . . . . . . . . 1 2 . . . 5 4 2 8 7 2 1 . . 5 2 1 . . . 10 . . 20 Heat Flow Errors 35 | . . . . . . . . . 1 1 . . . 4 2 . 2 8 3 2 . . . 1 1 . 1 . 1 . 2 6 Energy Discharges 40 | . . . . . . . . . 1 . . . . 3 4 1 5 2 2 2 2 . 1 . . . . . 5 . 2 10 Parts Rejected 7 | . . . . . . . . . . . . . . . 1 1 . 1 . . . . . . . . 1 . 1 . . 2 Parts Fused 4 | . . . . . . . . . . . . . . 1 1 . . . . . . . . . . . . 1 1 . . . Data Loss (minor) 30 | . . . . . . . . . . . . . . 1 2 3 3 2 2 2 . . 1 . . 1 . . 5 . 1 7 Data Loss (major) 13 | . . . . . . . . . . . . . . . . . 1 1 . . . . 1 1 . 1 . . 2 . . 6 Misfires 15 | . . . . . . . . . . . . . . 3 2 . . 2 1 1 . . . . . . . 1 1 . 2 2 Alerts 8 | . . . . . . . . . . . . . . . . 2 . . 1 1 . . . . 1 . . . 1 . . 2 Misdirections 1 | . . . . . . . . . . . . . . . . . . . . . . . . . . . . . . . . 1 Weapon Failures 8 | . . . . . . . . . . . . . . 1 1 1 . 1 . . . . 1 . . . . . 1 . . 2 Overload Shots 3 | . . . . . . . . . . . . . . . 1 . . . . . 2 . . . . . . . . . . . Effects 2 | . . . . . . . . . . . . . . . 1 . . . . . 1 . . . . . . . . . . . Heat Surge 1 | . . . . . . . . . . . . . . . 1 . . . . . . . . . . . . . . . . . Short Circuit 1 | . . . . . . . . . . . . . . . . . . . . . 1 . . . . . . . . . . . Overflow Damage 3583 | . . . . . . . . 415 91 153 . 26 3 28 . 468 2 68 . . 23 13 346 5 . 215 83 274 193 34 538 605 Projectiles 894 | . . . . . . . . 45 62 90 . . 3 28 . . 2 10 . . 2 13 213 5 . . . 28 86 34 231 42 Explosions 612 | . . . . . . . . 49 29 63 . 26 . . . . . 58 . . 21 . 133 . . . . . . . 230 3 Melee 2077 | . . . . . . . . 321 . . . . . . . 468 . . . . . . . . . 215 83 246 107 . 77 560 Knockbacks 49 | . . . . . 1 . . 4 . . . . 2 5 1 . . 3 . . . . 7 1 . . . 6 10 . 3 6 Impact 7 | . . . . . . . . 3 . . . . . . . . . . . . . . . . . . . 4 . . . . Kinetic 38 | . . . . . 1 . . 1 . . . . 2 5 1 . . 3 . . . . 5 1 . . . 2 10 . 3 4 Secondary 4 | . . . . . . . . . . . . . . . . . . . . . . . 2 . . . . . . . . 2 Self-Inflicted Damage 587 | . . 62 . . . . 78 34 . . . 60 . . . . . 41 . . 59 . 94 . . . . . . 36 123 . Shots 13 | . . 2 . . . . 2 1 . . . 2 . . . . . 1 . . 1 . 2 . . . . . . 1 1 . Rammed 8 | . . . . . . . . . . . . . . . . . . 6 . . . . 1 . . . . . 1 . . . Targets Rammed 9 | . . . . . . . . . . . . . . . . . . 7 . . . . 1 . . . . . 1 . . . Kicked . | . . . . . . . . . . . . . . . . . . . . . . . . . . . . . . . . . Crushed 1 | . . . . . . . . . . . . . . . . . . 1 . . . . . . . . . . . . . . Highest Temperature 400 | . 159 362 . 219 199 . . 85 215 123 . 36 400 345 247 18 350 363 244 195 130 18 150 84 256 . 126 237 197 240 358 363 Average Temperature 76 | . 46 110 . 62 84 . . 16 65 43 . 19 111 78 67 9 85 76 118 105 42 10 52 45 137 . 68 58 93 76 100 135 Received Heat Transfer 3492 | . 39 72 . . 279 . . 153 45 36 . 90 36 276 61 9 66 162 . . 201 . 685 27 115 . 54 45 82 90 288 581 Effects 11 | . . 3 . . . . . . . . . . 1 . . . . 3 1 . . . . . . . . . . . 2 1 Shutdowns 2 | . . 1 . . . . . . . . . . 1 . . . . . . . . . . . . . . . . . . . Energy Bleed 3 | . . . . . . . . . . . . . . . . . . 1 1 . . . . . . . . . . . . 1 Interference 2 | . . . . . . . . . . . . . . . . . . . . . . . . . . . . . . . 2 . Matter Decay 2 | . . 1 . . . . . . . . . . . . . . . 1 . . . . . . . . . . . . . . Short Circuit 1 | . . . . . . . . . . . . . . . . . . 1 . . . . . . . . . . . . . . Damage (minor) 1 | . . 1 . . . . . . . . . . . . . . . . . . . . . . . . . . . . . . Siege Activations 13 | . . . . . . . . . . . . . . . . . . 4 . . . . 1 . . . . . . 1 3 4 Total Turns 235 | . . . . . . . . . . . . . . . . . . 55 . . . . 23 . . . . . . 7 73 77 Longest Duration 48 | . . . . . . . . . . . . . . . . . . 35 . . . . 23 . . . . . . 7 48 31 Martial Activations . | . . . . . . . . . . . . . . . . . . . . . . . . . . . . . . . . . Shielding Activations . | . . . . . . . . . . . . . . . . . . . . . . . . . . . . . . . . . Robots Disrupted 1 | . . . . . . . . . . . . . . . . . . . . . . . . . . . . . . . . 1 Combat Hostiles 1 | . . . . . . . . . . . . . . . . . . . . . . . . . . . . . . . . 1 Robots Corrupted 46 | . . . . . . . . 3 . . . . . . . . . . . . . . 1 . . . . 4 3 9 19 7 Combat Hostiles 37 | . . . . . . . . . . . . . . . . . . . . . . . . . . . . 1 3 9 18 6 Parts Fried 76 | . . . . . . . . 7 . . . . . 5 . . . . . . 3 . . . . . 1 8 4 11 32 5 Impact Corruptions 31 | . . . . . . . . 13 . . . . . . . . . . . . . . 1 . . 7 3 7 . . . . Robots Melted 8 | . . . . . 1 . . . . . . . . . 1 . 1 1 . . 1 . 1 . . . . . . . 1 1 Combat Hostiles 7 | . . . . . 1 . . . . . . . . . 1 . . 1 . . 1 . 1 . . . . . . . 1 1 Parts Melted 28 | . . . . 2 3 . . . . . . . . 1 . . . 5 . . 1 . 6 . . . . . . . 9 1 Heat Transferred 14912 | . 555 592 . 518 1049 . . 518 259 814 . . . 400 1133 500 600 3100 . . 628 74 2722 . . . . . . . 716 734 Parts Sabotaged . | . . . . . . . . . . . . . . . . . . . . . . . . . . . . . . . . . Parts Stolen . | . . . . . . . . . . . . . . . . . . . . . . . . . . . . . . . . . Parts Stripped 12 | . . . . . . . . . . . . . . . . . . . . . . . . . . . . . 12 . . . Power Chain Reactions 3 | . . . . . 1 . . . . . . . . . . . . . . . . . . . . . . . . 1 1 . Alert | -11 -10 -10 -10 -9 -8 -7 -7 -7 -7 -7 -7 -6 -6 -6 -6 -6 -6 -5 -5 -5 -5 -4 -4 -4 -4 -4 -3 -3 -3 -2 -1 -1 ------- Run | Yrd Mat Min Exi Min Mat Fac Was Fac Low Low Zio Pro Fac Ext Cet Arc Hub Fac Upp Upp War Pro Fac Upp Upp Zhi Pro Res Qua Res Acc Com Maximum Alert Level 3 | . . . . . 1 . . 1 . . . . . 2 1 1 1 3 . . . . 2 . . . . 2 1 . 3 2 Low Security (%) 61 | 100 100 100 . 100 76 100 100 86 . . . . 100 48 20 72 12 46 . . . . 88 . . . . . 92 100 36 . Level 1 15 | . . . . . 23 . . 13 . . . . . 33 80 27 87 20 . . . . 5 . . . . . 7 . 10 22 Level 2 19 | . . . . . . . . . . . . . . 17 . . . 31 . . . . 5 . . . . 100 . . 30 77 Level 3 2 | . . . . . . . . . . . . . . . . . . 1 . . . . . . . . . . . . 22 . Level 4 . | . . . . . . . . . . . . . . . . . . . . . . . . . . . . . . . . . Level 5 . | . . . . . . . . . . . . . . . . . . . . . . . . . . . . . . . . . High Security . | . . . . . . . . . . . . . . . . . . . . . . . . . . . . . . . . . Max Security . | . . . . . . . . . . . . . . . . . . . . . . . . . . . . . . . . . Peak Influence 808 | . 40 40 . 81 236 76 14 253 . . . . 150 467 328 237 387 728 . . . . 481 . . . . 689 264 170 808 621 Initial 674 | . . . . . 9 76 . . . . . . 150 . 212 101 34 125 . . . . 14 . . . . 674 240 72 92 515 Average 203 | . 5 7 . 25 148 17 . 77 . . . . 26 198 248 167 271 319 . . . . 100 . . . . 556 97 53 363 448 Influence Increases 11658 | . 127 109 . 290 559 . 45 603 115 60 . 100 245 1117 379 287 790 1357 . . 345 130 865 200 75 10 170 854 559 428 1256 583 Destroy 0b10 Robot/C 5160 | . 60 80 . 180 360 . . 220 100 60 . 80 40 600 160 80 240 500 . . 320 100 260 100 . . . 40 300 240 700 340 Destroy 0b10 Robot/NC 515 | . 20 10 . 30 20 . . 55 . . . 10 10 30 10 40 35 35 . . 10 5 40 . . 10 5 20 15 5 45 55 Destroy Leader 836 | . 22 10 . 30 72 . . 30 . . . 10 10 64 . . 96 106 . . . 10 52 10 . . . 12 52 52 146 52 Allied During Kill 1003 | . . 5 . 35 2 . . . . . . . . 296 170 120 371 . . . . . . . . . . . . . . 4 Successful Hack 99 | . 10 . . . . . . 10 . . . . 12 29 . . . 4 . . . . 5 . . . . . 6 5 18 . Disable Machine 1170 | . . . . . 30 . . 90 . . . . 15 30 15 45 . 435 . . . . 225 . . . . 30 150 . 60 45 Destroy Structure 1075 | . . 4 . . 30 . 45 48 . . . . 8 38 24 2 48 232 . . . . 178 . . . . 32 36 21 242 87 Advance Influence 750 | . . . . . . . . . . . . . 150 . . . . . . . . . . . . . . 600 . . . . Partial Spotted 105 | . 15 . . . . . . 75 . . . . . . . . . . . . . . . . . . . 15 . . . . Lose Combat Pursuer 945 | . . . . 15 45 . . 75 15 . . . . 30 . . . 45 . . 15 15 105 90 75 . 165 105 . 105 45 . Influence Decreases 11286 | . 127 109 . 266 414 169 45 367 351 60 . 100 245 737 506 442 632 959 423 215 120 348 407 239 135 392 60 536 858 402 605 1017 Entered New Map 2546 | . . . . . 15 93 . . 88 . . . . . 168 152 64 131 243 45 16 241 9 179 85 382 . 36 188 57 63 291 Time Decay 7106 | . 127 99 . 239 357 76 37 302 263 50 . 75 245 412 278 230 368 598 180 170 94 97 256 60 50 10 50 490 510 325 512 546 Lost Part 663 | . . 10 . 10 17 . 8 20 . 10 . 25 . 61 . . 20 80 . . 10 10 142 . . . 10 10 10 20 30 160 Lost Ally 476 | . . . . 17 25 . . . . . . . . 114 60 60 180 . . . . . . . . . . . . . . 20 Purge Threat 495 | . . . . . . . . 45 . . . . . 150 . . . 150 . . . . . . . . . . 150 . . . Squads Dispatched 55 | . 2 . . . 3 . . 5 . . . . 4 2 . . 4 10 . . . . 8 . . . . 1 4 . 7 5 Investigation 8 | . 1 . . . . . . 2 . . . . 1 1 . . 1 1 . . . . 1 . . . . . . . . . Extermination 23 | . . . . . . . . 2 . . . . 2 . . . 1 4 . . . . 2 . . . . . 4 . 4 4 Reinforcement 12 | . 1 . . . 3 . . 1 . . . . 1 1 . . 2 1 . . . . 1 . . . . 1 . . . . Assault 4 | . . . . . . . . . . . . . . . . . . 1 . . . . . . . . . . . . 2 1 Garrison 8 | . . . . . . . . . . . . . . . . . . 3 . . . . 4 . . . . . . . 1 . Intercept . | . . . . . . . . . . . . . . . . . . . . . . . . . . . . . . . . . Searches Triggered . | . . . . . . . . . . . . . . . . . . . . . . . . . . . . . . . . . Construction Impeded 2 | . . . . . 1 . . . . . . . . . . . . . . . . . 1 . . . . . . . . . Haulers Reinforced . | . . . . . . . . . . . . . . . . . . . . . . . . . . . . . . . . . Active Scanning Responses . | . . . . . . . . . . . . . . . . . . . . . . . . . . . . . . . . . Cargo Convoy Interrupts . | . . . . . . . . . . . . . . . . . . . . . . . . . . . . . . . . . Stealth | -11 -10 -10 -10 -9 -8 -7 -7 -7 -7 -7 -7 -6 -6 -6 -6 -6 -6 -5 -5 -5 -5 -4 -4 -4 -4 -4 -3 -3 -3 -2 -1 -1 --------- Run | Yrd Mat Min Exi Min Mat Fac Was Fac Low Low Zio Pro Fac Ext Cet Arc Hub Fac Upp Upp War Pro Fac Upp Upp Zhi Pro Res Qua Res Acc Com Distress Signals 30 | . . . . . . . . . . . . . . 2 2 . 1 4 . . . . . . . . 1 3 1 7 3 6 Communications Jammed 96 | . . . . . . . . 1 . . . . . 1 . . 15 . . . . 1 32 . . . 1 37 8 . . . Distress Signals 93 | . . . . . . . . 1 . . . . . 1 . . 14 . . . . 1 31 . . . . 37 8 . . . Times Spotted 480 | . 9 5 . 9 25 . 8 18 6 3 . 6 5 33 10 7 20 36 . . 63 4 28 10 10 . 17 23 25 29 47 24 Peak Tracking Total 14 | . 2 2 . 3 5 . 6 7 3 3 . 4 1 4 5 2 8 5 . . 13 1 8 8 14 . 11 4 4 10 6 8 Tactical Retreats 39 | . . . . 1 3 . 1 5 1 . . . . 1 . . . 3 . . 1 1 4 3 2 . 3 4 . 4 2 . Traps | -11 -10 -10 -10 -9 -8 -7 -7 -7 -7 -7 -7 -6 -6 -6 -6 -6 -6 -5 -5 -5 -5 -4 -4 -4 -4 -4 -3 -3 -3 -2 -1 -1 ------- Run | Yrd Mat Min Exi Min Mat Fac Was Fac Low Low Zio Pro Fac Ext Cet Arc Hub Fac Upp Upp War Pro Fac Upp Upp Zhi Pro Res Qua Res Acc Com Traps Triggered 23 | . 2 . . . . 1 . 3 . . . . . 4 . . . 6 . . . . 1 . . . . 1 1 . 2 2 Indirectly . | . . . . . . . . . . . . . . . . . . . . . . . . . . . . . . . . . Trap Hack Attempts . | . . . . . . . . . . . . . . . . . . . . . . . . . . . . . . . . . Triggered . | . . . . . . . . . . . . . . . . . . . . . . . . . . . . . . . . . Disarmed . | . . . . . . . . . . . . . . . . . . . . . . . . . . . . . . . . . Reprogrammed . | . . . . . . . . . . . . . . . . . . . . . . . . . . . . . . . . . Reused . | . . . . . . . . . . . . . . . . . . . . . . . . . . . . . . . . . Traps Extracted . | . . . . . . . . . . . . . . . . . . . . . . . . . . . . . . . . . Installed . | . . . . . . . . . . . . . . . . . . . . . . . . . . . . . . . . . Triggered . | . . . . . . . . . . . . . . . . . . . . . . . . . . . . . . . . . Machines | -11 -10 -10 -10 -9 -8 -7 -7 -7 -7 -7 -7 -6 -6 -6 -6 -6 -6 -5 -5 -5 -5 -4 -4 -4 -4 -4 -3 -3 -3 -2 -1 -1 ---------- Run | Yrd Mat Min Exi Min Mat Fac Was Fac Low Low Zio Pro Fac Ext Cet Arc Hub Fac Upp Upp War Pro Fac Upp Upp Zhi Pro Res Qua Res Acc Com Machines Disabled 83 | . . . . . 2 . . 6 . . . . 1 5 1 3 . 29 . . 1 . 15 . 1 . . 2 10 . 4 3 Max in Single Turn 15 | . . . . . 1 . . 4 . . . . 1 1 1 1 . 15 . . 1 . 12 . 1 . . 1 1 . 1 1 Garrison Access 5 | . . . . . . . . . . . . . . . . . 1 . . . . . . . . . . . 1 2 1 . Network Hub 1 | . . . . . . . . . . . . . . . . . 1 . . . . . . . . . . . . . . . Machines Repaired . | . . . . . . . . . . . . . . . . . . . . . . . . . . . . . . . . . Machines Dismantled . | . . . . . . . . . . . . . . . . . . . . . . . . . . . . . . . . . Machines Sabotaged . | . . . . . . . . . . . . . . . . . . . . . . . . . . . . . . . . . Overloaded Fab Kills . | . . . . . . . . . . . . . . . . . . . . . . . . . . . . . . . . . Hacking | -11 -10 -10 -10 -9 -8 -7 -7 -7 -7 -7 -7 -6 -6 -6 -6 -6 -6 -5 -5 -5 -5 -4 -4 -4 -4 -4 -3 -3 -3 -2 -1 -1 --------- Run | Yrd Mat Min Exi Min Mat Fac Was Fac Low Low Zio Pro Fac Ext Cet Arc Hub Fac Upp Upp War Pro Fac Upp Upp Zhi Pro Res Qua Res Acc Com Machines Accessed 76 | . 5 1 1 1 1 1 . 6 . . . . 3 11 1 . 3 6 . . 4 . 4 . . 5 . 5 6 3 7 2 Terminals 41 | . 4 1 . . 1 . . 2 . . . . 1 9 1 . 2 5 . . . . 1 . . . . 3 3 1 5 2 Fabricators 4 | . . . . . . 1 . 1 . . . . 1 . . . . 1 . . . . . . . . . . . . . . Repair Stations 2 | . . . . . . . . . . . . . 1 1 . . . . . . . . . . . . . . . . . . Recycling Units 8 | . 1 . . . . . . 2 . . . . . 1 . . . . . . . . 2 . . . . . . 1 1 . Scanalyzers 3 | . . . . . . . . 1 . . . . . . . . . . . . . . . . . . . . 2 . . . Garrison Access 7 | . . . . . . . . . . . . . . . . . 1 . . . . . 1 . . . . 2 1 1 1 . Total Hacks 164 | . 9 4 1 1 2 1 . 13 . . . . 8 32 3 . 4 15 . . 4 . 10 . . 18 . 8 12 6 10 3 Successful 81 | . 5 1 1 1 1 1 . 7 . . . . 3 15 . . 3 6 . . 4 . 2 . . 18 . 1 5 4 3 . Failed 83 | . 4 3 . . 1 . . 6 . . . . 5 17 3 . 1 9 . . . . 8 . . . . 7 7 2 7 3 Catastrophic 18 | . . 1 . . . . . 1 . . . . . 1 . . . 3 . . . . 3 . . . . 2 5 . 2 . Database Lockouts . | . . . . . . . . . . . . . . . . . . . . . . . . . . . . . . . . . Manual 35 | . . 4 . . . . . 3 . . . . . 5 1 . 2 7 . . . . . . . . . 1 8 1 1 2 Terminals 93 | . 8 4 . . 2 . . 5 . . . . 2 25 3 . 3 13 . . . . 1 . . . . 6 7 4 7 3 Fabricators 10 | . . . . . . 1 . 4 . . . . 3 . . . . 2 . . . . . . . . . . . . . . Repair Stations 5 | . . . . . . . . . . . . . 3 2 . . . . . . . . . . . . . . . . . . Recycling Units 13 | . 1 . . . . . . 2 . . . . . 5 . . . . . . . . 3 . . . . . . 1 1 . Scanalyzers 6 | . . . . . . . . 2 . . . . . . . . . . . . . . . . . . . . 4 . . . Garrison Access 13 | . . . . . . . . . . . . . . . . . 1 . . . . . 6 . . . . 2 1 1 2 . Terminal Hacks 54 | . 4 1 1 1 1 . . 1 . . . . . 10 . . 1 4 . . 4 . 1 . . 18 . 1 2 2 2 . Record 17 | . . . 1 . . . . . . . . . . 4 . . . 2 . . 4 . . . . 6 . . . . . . Part Schematic 5 | . . 1 . . . . . . . . . . . . . . . . . . . . . . . 4 . . . . . . Robot Analysis 5 | . . . . . . . . . . . . . . 1 . . . . . . . . . . . 4 . . . . . . Prototype ID Bank 7 | . 2 . . . . . . . . . . . . 1 . . . . . . . . . . . 4 . . . . . . Open Door 6 | . . . . 1 . . . . . . . . . 3 . . . . . . . . . . . . . . 1 . 1 . Branch Access Points 4 | . . . . . . . . . . . . . . . . . . 1 . . . . 1 . . . . 1 . . 1 . Terminal Index 1 | . . . . . . . . . . . . . . . . . . . . . . . . . . . . . . 1 . . Alert Level 2 | . 1 . . . 1 . . . . . . . . . . . . . . . . . . . . . . . . . . . Unreport Threat 4 | . . . . . . . . 1 . . . . . 1 . . . 1 . . . . . . . . . . 1 . . . Zone Layout 3 | . 1 . . . . . . . . . . . . . . . 1 . . . . . . . . . . . . 1 . . Fabricator Hacks 5 | . . . . . . 1 . 2 . . . . 1 . . . . 1 . . . . . . . . . . . . . . Load Schematic 1 | . . . . . . . . 1 . . . . . . . . . . . . . . . . . . . . . . . . Build 4 | . . . . . . 1 . 1 . . . . 1 . . . . 1 . . . . . . . . . . . . . . Repair Station Hacks 4 | . . . . . . . . . . . . . 2 2 . . . . . . . . . . . . . . . . . . Scan Component 2 | . . . . . . . . . . . . . 1 1 . . . . . . . . . . . . . . . . . . Repair 2 | . . . . . . . . . . . . . 1 1 . . . . . . . . . . . . . . . . . . Recycling Unit Hacks 5 | . 1 . . . . . . 2 . . . . . 1 . . . . . . . . 1 . . . . . . . . . Retrieve Components 5 | . 1 . . . . . . 2 . . . . . 1 . . . . . . . . 1 . . . . . . . . . Scanalyzer 2 | . . . . . . . . 2 . . . . . . . . . . . . . . . . . . . . . . . . Insert Component 1 | . . . . . . . . 1 . . . . . . . . . . . . . . . . . . . . . . . . Analyze 1 | . . . . . . . . 1 . . . . . . . . . . . . . . . . . . . . . . . . Garrison Access Hacks 4 | . . . . . . . . . . . . . . . . . 1 . . . . . . . . . . . 1 1 1 . Seal Access 4 | . . . . . . . . . . . . . . . . . 1 . . . . . . . . . . . 1 1 1 . Unauthorized Hacks 7 | . . . . . . . . . . . . . . 2 . . 1 1 . . . . . . . . . . 2 1 . . Terminals 7 | . . . . . . . . . . . . . . 2 . . 1 1 . . . . . . . . . . 2 1 . . Assimilate 1 | . . . . . . . . . . . . . . . . . . 1 . . . . . . . . . . . . . . Botnet 4 | . . . . . . . . . . . . . . 2 . . . . . . . . . . . . . . 1 1 . . Operators 1 | . . . . . . . . . . . . . . . . . . . . . . . . . . . . . 1 . . . Sabotage 1 | . . . . . . . . . . . . . . . . . 1 . . . . . . . . . . . . . . . Fabricators . | . . . . . . . . . . . . . . . . . . . . . . . . . . . . . . . . . Repair Stations . | . . . . . . . . . . . . . . . . . . . . . . . . . . . . . . . . . Recycling Units . | . . . . . . . . . . . . . . . . . . . . . . . . . . . . . . . . . Scanalyzers . | . . . . . . . . . . . . . . . . . . . . . . . . . . . . . . . . . Garrison Access . | . . . . . . . . . . . . . . . . . . . . . . . . . . . . . . . . . Data Cores Recovered 2 | . . . . . . . . . . . . . . . . . . . . . . . 1 . . . . . . . 1 . Used . | . . . . . . . . . . . . . . . . . . . . . . . . . . . . . . . . . Hacking Detections 42 | . 3 1 . . 1 . . 3 . . . . 3 7 2 . . 4 . . . . 3 . . . . 4 3 1 5 2 Full Trace Events 5 | . . . . . . . . 2 . . . . 1 1 . . . . . . . . 1 . . . . . . . . . Feedback Events 1 | . . . . . . . . . . . . . . . . . . . . . . . 1 . . . . . . . . . Corruption 1 | . . . . . . . . . . . . . . . . . . . . . . . 1 . . . . . . . . . Feedback Blocked . | . . . . . . . . . . . . . . . . . . . . . . . . . . . . . . . . . Robot Schematics Acquired 3 | . . . . . . . . . . . 3 . . . . . . . . . . . . . . . . . . . . . Robots Built . | . . . . . . . . . . . . . . . . . . . . . . . . . . . . . . . . . Authchips . | . . . . . . . . . . . . . . . . . . . . . . . . . . . . . . . . . Time . | . . . . . . . . . . . . . . . . . . . . . . . . . . . . . . . . . Total Robot Build Rating . | . . . . . . . . . . . . . . . . . . . . . . . . . . . . . . . . . Part Schematics Acquired 21 | . . 1 . . . . . 1 . . 15 . . . . . . . . . . . . . . 4 . . . . . . Parts Built 6 | . . . . . . 1 . 1 . . . . 2 . . . . 2 . . . . . . . . . . . . . . Authchips . | . . . . . . . . . . . . . . . . . . . . . . . . . . . . . . . . . Time 317 | . . . . . . 47 . 25 . . . . 106 . . . . 139 . . . . . . . . . . . . . . Total Part Build Rating 36 | . . . . . . 5 . 1 . . . . 12 . . . . 18 . . . . . . . . . . . . . . Parts Repaired 2 | . . . . . . . . . . . . . 1 1 . . . . . . . . . . . . . . . . . . Time 44 | . . . . . . . . . . . . . 22 22 . . . . . . . . . . . . . . . . . . Parts Recycled . | . . . . . . . . . . . . . . . . . . . . . . . . . . . . . . . . . Recycled Matter . | . . . . . . . . . . . . . . . . . . . . . . . . . . . . . . . . . Retrieved Matter . | . . . . . . . . . . . . . . . . . . . . . . . . . . . . . . . . . Retrieved Components 16 | . 2 . . . . . . 3 . . . . . 8 . . . . . . . . 3 . . . . . . . . . Parts Scanalyzed 1 | . . . . . . . . 1 . . . . . . . . . . . . . . . . . . . . . . . . Part Schematics Acquired 1 | . . . . . . . . 1 . . . . . . . . . . . . . . . . . . . . . . . . Parts Damaged . | . . . . . . . . . . . . . . . . . . . . . . . . . . . . . . . . . Bothacking | -11 -10 -10 -10 -9 -8 -7 -7 -7 -7 -7 -7 -6 -6 -6 -6 -6 -6 -5 -5 -5 -5 -4 -4 -4 -4 -4 -3 -3 -3 -2 -1 -1 ------------ Run | Yrd Mat Min Exi Min Mat Fac Was Fac Low Low Zio Pro Fac Ext Cet Arc Hub Fac Upp Upp War Pro Fac Upp Upp Zhi Pro Res Qua Res Acc Com Used RIF Installer . | . . . . . . . . . . . . . . . . . . . . . . . . . . . . . . . . . Robots Hacked 1 | . . . . . . . . . . . . . . . . . . . . . . . . . . . . . . . . 1 Non-combat . | . . . . . . . . . . . . . . . . . . . . . . . . . . . . . . . . . Combat . | . . . . . . . . . . . . . . . . . . . . . . . . . . . . . . . . . Robot Hacks Applied . | . . . . . . . . . . . . . . . . . . . . . . . . . . . . . . . . . Manual 1 | . . . . . . . . . . . . . . . . . . . . . . . . . . . . . . . . 1 Relay Couplers Released 6 | . . . . . . . . . . . . . . . . . . . . . . . 4 . . . . . . 2 . . Machine Destruction 2 | . . . . . . . . . . . . . . . . . . . . . . . . . . . . . . 2 . . Programmers 4 | . . . . . . . . . . . . . . . . . . . . . . . 4 . . . . . . . . . Fabnet Peak Effective % . | . . . . . . . . . . . . . . . . . . . . . . . . . . . . . . . . . Robots Rewired 18 | . . . . . . . . . . . . . . 17 . . . . . . . . . . . . . . . . . 1 Allies Hacked . | . . . . . . . . . . . . . . . . . . . . . . . . . . . . . . . . . Hacks Repelled . | . . . . . . . . . . . . . . . . . . . . . . . . . . . . . . . . . Allies | -11 -10 -10 -10 -9 -8 -7 -7 -7 -7 -7 -7 -6 -6 -6 -6 -6 -6 -5 -5 -5 -5 -4 -4 -4 -4 -4 -3 -3 -3 -2 -1 -1 -------- Run | Yrd Mat Min Exi Min Mat Fac Was Fac Low Low Zio Pro Fac Ext Cet Arc Hub Fac Upp Upp War Pro Fac Upp Upp Zhi Pro Res Qua Res Acc Com Total Allies 52 | . . 3 . 2 . . 19 . . . . . . 21 5 . . . . . . . . . 1 . . . . . . 1 Largest Group 19 | . . 3 3 5 3 . 19 2 . . . . . 14 17 16 12 . . . . . . . 1 . . . . . . 1 Highest-Rated Group 964 | . . 40 40 81 34 . 475 49 . . . . . 542 964 926 681 . . . . . . . 146 . . . . . . 42 Highest-Rated Ally 159 | . . 16 16 31 16 . 35 35 . . . . . 159 159 152 96 . . . . . . . 146 . . . . . . 42 Total Orders 9 | . . . . . 1 . . . . . . . . 1 . 2 3 . . . . . . . . . . . . . . 2 STAY 6 | . . . . . 1 . . . . . . . . 1 . 1 2 . . . . . . . . . . . . . . 1 FOLLOW 3 | . . . . . . . . . . . . . . . . 1 1 . . . . . . . . . . . . . . 1 Ally Attacks 461 | . . 3 . 38 9 . 92 . . . . . . 184 46 13 76 . . . . . . . . . . . . . . . Total Damage 10595 | . . 25 . 393 59 . 2715 . . . . . . 3818 1363 328 1894 . . . . . . . . . . . . . . . Kills 59 | . . 1 . 6 . . 8 . . . . . . 23 9 3 9 . . . . . . . . . . . . . . . Allies Corrupted 6 | . . . . . . . . 1 . . . . . . . . 4 . . . . . . . . . . . . . . 1 Allies Melted 1 | . . . . . . . . . 1 . . . . . . . . . . . . . . . . . . . . . . . Intel | -11 -10 -10 -10 -9 -8 -7 -7 -7 -7 -7 -7 -6 -6 -6 -6 -6 -6 -5 -5 -5 -5 -4 -4 -4 -4 -4 -3 -3 -3 -2 -1 -1 ------- Run | Yrd Mat Min Exi Min Mat Fac Was Fac Low Low Zio Pro Fac Ext Cet Arc Hub Fac Upp Upp War Pro Fac Upp Upp Zhi Pro Res Qua Res Acc Com Active Infowar (turns) 20631 | . . . . . 301 363 274 967 630 835 877 664 1079 333 . 200 849 1828 369 356 523 468 967 . . . 68 1284 1506 1759 2502 1629 Optics 8598 | . . . . . . . . . . . . . . . . . . . . . . . . . . . . 1202 1506 1759 2502 1629 Sensors 13154 | . . . . . . . . 706 630 835 877 664 1079 328 . . . 1763 369 335 495 468 967 . . . . . 2 1757 1849 30 Terrain 395 | . . . . . . . . . . . . . . . . . . . . 18 . . 377 . . . . . . . . . Structural 1230 | . . . . . . . . . . . . . . . . . . . . . . . . . . . . 845 385 . . . Seismic 3377 | . . . . . 301 363 244 . . . . . . . . . . . . . . . . . . . . 1039 1429 1 . . Machine Analysis 165 | . . . . . . . . 165 . . . . . . . . . . . . . . . . . . . . . . . . Jamming 8834 | . . . . . . . 30 275 . . . 352 1079 314 . 200 849 65 369 356 523 390 818 . . . 68 1284 1401 461 . . Robot Analysis Total 5 | . . . . . . . . . . . . . . 1 . . . . . . . . . . . 4 . . . . . . Derelict Logs Recovered 9 | . . 2 . 1 . . . . . . 3 . . . . . . . 1 . . 1 . 1 . . . . . . . . Drone Launches . | . . . . . . . . . . . . . . . . . . . . . . . . . . . . . . . . . Drone Recoveries . | . . . . . . . . . . . . . . . . . . . . . . . . . . . . . . . . . Exploration | -11 -10 -10 -10 -9 -8 -7 -7 -7 -7 -7 -7 -6 -6 -6 -6 -6 -6 -5 -5 -5 -5 -4 -4 -4 -4 -4 -3 -3 -3 -2 -1 -1 ------------- Run | Yrd Mat Min Exi Min Mat Fac Was Fac Low Low Zio Pro Fac Ext Cet Arc Hub Fac Upp Upp War Pro Fac Upp Upp Zhi Pro Res Qua Res Acc Com Turns Passed 26946 | 96 695 620 223 894 944 363 550 1081 630 835 891 664 1079 1349 605 487 849 1904 369 356 808 469 1046 139 105 74 141 1284 1506 1759 2502 1629 Spaces Moved 16695 | 55 408 398 164 590 462 231 570 1708 466 263 779 226 490 725 247 256 340 889 229 220 387 232 569 198 191 150 308 1258 704 1019 1258 705 Core 570 | 5 . . . . . . 135 . . . . . . . . . . . . . . . 85 198 127 . 1 19 . . . . Treads 6723 | 49 123 . . . . . . . . 117 . . . . 98 17 306 889 229 220 387 232 484 . . . . . 673 1019 1258 622 Legs 764 | . . . . . . . . . . . . . . . . . . . . . . . . . . . . 733 31 . . . Wheels 5894 | 1 285 398 164 590 462 231 123 303 466 146 779 226 490 725 149 239 34 . . . . . . . . . . . . . . 83 Hover 151 | . . . . . . . 151 . . . . . . . . . . . . . . . . . . . . . . . . . Flight 2593 | . . . . . . . 161 1405 . . . . . . . . . . . . . . . . 64 150 307 506 . . . . Fastest Speed 26 | 50 135 135 135 135 140 140 26 26 120 111 111 123 120 123 130 130 145 160 160 160 160 160 50 50 40 40 40 39 120 162 145 123 Average Speed 128 | 148 142 135 135 136 140 140 68 46 120 276 111 149 136 130 181 142 230 162 160 160 160 160 145 50 51 40 40 87 165 162 153 169 Slowest Speed 480 | 160 160 135 135 140 140 155 300 145 120 480 126 160 245 160 240 240 240 163 160 160 160 160 245 50 200 40 100 120 360 162 239 236 Overloaded Moves . | . . . . . . . . . . . . . . . . . . . . . . . . . . . . . . . . . Propulsion Burnouts . | . . . . . . . . . . . . . . . . . . . . . . . . . . . . . . . . . Robots Hopped 20 | . . . . . . . . 19 . . . . . . . . . . . . . . . . . . . 1 . . . . Potential Cave-ins 18 | . . . . . . . 5 . . . . 3 . . . . . . . . . 2 . . . . . . . . 8 . Cave-ins Triggered 2 | . . . . . . . 1 . . . . . . . . . . . . . . . . . . . . . . . . 1 Exploration Rate (%) 48 | 4 65 84 53 99 39 7 91 32 65 48 81 39 11 76 80 86 41 19 41 35 64 36 17 42 45 60 50 35 59 41 31 20 Regions Visited 32 Branch Regions 21 Pre-discovered Areas 7 | . . 1 1 1 . . . . . . . . . . . . . . . . . . . 1 . 3 . . . . . . Known Exits Taken 18 | . . . 1 . . . . 1 1 1 1 1 1 1 . . 1 1 1 1 1 1 1 . . . . 1 . 1 1 . Unknown Exits Taken 12 | 1 1 1 . 1 1 . . . . . . . . . 1 1 . . . . . . . 1 1 1 1 . 1 . . . Scrap Searched 17 | . . 1 . 2 . . . . . . 4 1 . . . . . . 2 3 . 2 . . 1 . 1 . . . . . Spaces Dug 168 | . . . . . 4 . 31 23 . 3 . 4 9 5 . . 5 6 . . 2 3 2 . . . 1 14 7 . 47 2 Terrain Destroyed 916 | . . 4 . . 30 . 109 48 25 26 . 62 9 25 11 2 23 148 . . 56 30 105 3 . . 1 17 17 13 108 44 Melee 59 | . . . . . . . . 19 . . . . . . . . . . . . 1 . . . . . 1 9 7 . 21 1 Projectile 271 | . . . . . 5 . . 7 3 10 . 9 9 25 11 2 11 46 . . 7 8 16 3 . . . 8 10 . 58 23 AOE 586 | . . 4 . . 25 . 109 22 22 16 . 53 . . . . 12 102 . . 48 22 89 . . . . . . 13 29 20 Terrain Rammed . | . . . . . . . . . . . . . . . . . . . . . . . . . . . . . . . . . Walls Destroyed . | . . . . . . . . . . . . . . . . . . . . . . . . . . . . . . . . . Machines Disabled . | . . . . . . . . . . . . . . . . . . . . . . . . . . . . . . . . . Actions | -11 -10 -10 -10 -9 -8 -7 -7 -7 -7 -7 -7 -6 -6 -6 -6 -6 -6 -5 -5 -5 -5 -4 -4 -4 -4 -4 -3 -3 -3 -2 -1 -1 --------- Run | Yrd Mat Min Exi Min Mat Fac Was Fac Low Low Zio Pro Fac Ext Cet Arc Hub Fac Upp Upp War Pro Fac Upp Upp Zhi Pro Res Qua Res Acc Com Total 20751 | 66 479 433 165 632 659 274 720 1877 517 320 804 529 867 1010 377 344 378 1196 232 224 490 312 689 229 196 158 315 1388 934 1135 1760 1042 Wait 1751 | . 20 4 2 2 77 17 106 26 35 1 10 272 306 95 83 40 2 181 . . 28 46 19 19 . . 1 4 34 6 220 95 Move 16626 | 54 407 397 163 589 461 231 569 1671 465 262 778 225 489 724 246 255 339 888 228 219 386 231 568 197 190 149 307 1255 703 1018 1257 705 Hop 18 | . . . . . . . . 17 . . . . . . . . . . . . . . . . . . . 1 . . . . Pick Up 303 | 5 18 4 . 5 20 8 7 23 2 3 6 2 16 16 7 8 4 14 2 1 6 3 12 . . 2 . 40 21 18 14 16 Fast Attach 155 | 5 1 . . 1 6 2 6 10 . . 3 . 8 7 7 2 1 5 . 1 5 5 4 . 2 3 3 18 18 6 9 17 Attach 119 | . 1 1 . 1 7 1 5 7 . 1 . 3 . 7 . 1 4 10 2 . 2 2 12 2 1 . . 6 9 7 7 20 Detach 76 | . . . . . 1 . 1 9 . . . . 2 4 1 . 2 1 . 1 3 2 2 2 1 . . 5 12 7 4 16 Swap 188 | 2 5 3 . 3 8 5 3 4 3 3 . 7 2 21 2 8 6 17 . 1 9 7 12 . . . . 3 12 7 22 13 Drop 281 | . 5 . . 6 20 10 13 8 . 4 6 . 17 16 16 10 6 5 . 1 8 6 11 . 1 2 . 20 40 20 20 10 Fire 963 | . 22 24 . 25 59 . 10 28 12 46 1 20 27 85 15 7 11 68 . . 42 9 48 9 1 . . 20 42 46 184 102 Melee 187 | . . . . . . . . 38 . . . . . 7 . 13 3 . . . 1 . . . . 2 4 16 42 . 23 38 Ram . | . . . . . . . . . . . . . . . . . . . . . . . . . . . . . . . . . Kick . | . . . . . . . . . . . . . . . . . . . . . . . . . . . . . . . . . Crush 9 | . . . . . . . . . . . . . . . . . . 7 . . . . 1 . . . . . 1 . . . Escape Stasis 74 | . . . . . . . . 36 . . . . . 28 . . . . . . . . . . . . . . . . . 10 Rewire 1 | . . . . . . . . . . . . . . . . . . . . . . 1 . . . . . . . . . . Trap . | . . . . . . . . . . . . . . . . . . . . . . . . . . . . . . . . . Miscellaneous . | . . . . . . . . . . . . . . . . . . . . . . . . . . . . . . . . . Route ------- -11/Scrapyard -10/Materials (discovered 4 exits: [*Mat x3] / *Min) -10/Mines (discovered 4 exits: [*Mat x2] / *Exi / [*Sub]) -10/Exiles (discovered 2 exits: *Min x2) -9/Mines (discovered 2 exits: *Mat x2) -8/Materials -7/Factory -7/Waste -7/Factory -7/Lower Caves -7/Lower Caves -7/Zion -6/Proximity Caves -6/Factory (discovered 3 exits: *Fac / *Low / *Ext) -6/Extension (discovered 2 exits: *Fac / *Cet) -6/Cetus (discovered 2 exits: *Fac / [*Arc]) -6/Archives (discovered 3 exits: *Fac / *Hub x2) -6/Hub_04(d) (discovered 2 exits: *Fac x2) -5/Factory (discovered 3 exits: *Fac / *Upp x2) -5/Upper Caves -5/Upper Caves -5/Warlord -4/Proximity Caves -4/Factory (discovered 3 exits: *Upp x2 / Arm) -4/Upper Caves -4/Upper Caves -4/Zhirov -3/Proximity Caves -3/Research (discovered 2 exits: *Qua x2) -3/Quarantine -2/Research -1/Access -1/Command Free Derelict Territories History --------- Turn | Location | Event 3 | -11/Scrapyard | Discovered new exit (range 15) 97 | -11/Scrapyard | Entered Materials 322 | -10/Materials | Build established: Mutant 404 | -10/Materials | Discovered new exit (range 4) 643 | -10/Materials | Discovered new exit (range 13) 721 | -10/Materials | Discovered new exit (range 14) 748 | -10/Materials | Discovered new exit (range 15) 792 | -10/Materials | Entered Mines 802 | -10/Mines | Excavation squad dispatched 802 | -10/Mines | A large section of the Mines collapsed 913 | -10/Mines | Assisted by bots powering up and referring to "LRC-V3" 962 | -10/Mines | Discovered new exit (range 15) 1072 | -10/Mines | Learned location of Storage (-9) 1096 | -10/Mines | Received a Rocket Launcher from a helpful Derelict 1124 | -10/Mines | Discovered new exit (range 12) 1265 | -10/Mines | Discovered new exit (range 11) 1319 | -10/Mines | Deemed a non-threat by the Exiles lab entrance 1320 | -10/Mines | Discovered new exit (range 5) 1412 | -10/Mines | Entered Exiles 1412 | -10/Exiles | Accompanied by 3 allies 1413 | -10/Exiles | Identified exit to Mines 1446 | -10/Exiles | Met 8R-AWN 1468 | -10/Exiles | Met EX-HEX 1527 | -10/Exiles | Met EX-DEC 1549 | -10/Exiles | Learned location of Zion (-7) 1635 | -10/Exiles | Entered Mines 1635 | -9/Mines | Accompanied by 3 allies 1675 | -9/Mines | Discovered new exit (range 10) 1818 | -9/Mines | A weapon hastily lodged in a ceiling crevice suddenly fell to the ground 1865 | -9/Mines | Found the Drone Emporium 1913 | -9/Mines | Found Prototype Device 2084 | -9/Mines | Discovered new exit (range 7) 2529 | -9/Mines | Entered Materials 2529 | -8/Materials | Accompanied by 3 allies 2529 | -8/Materials | Evolved 4 slots: Propulsion x2, Utility x2 2671 | -8/Materials | Lost 3 allies 2982 | -8/Materials | Build established: Derelict-Mutant 3374 | -8/Materials | Discovered new exit (range 13) 3428 | -8/Materials | Identified Bomb Drone Bay 3473 | -8/Materials | Entered Factory 3473 | -7/Factory | Evolved 2 slots: Utility x1, Weapon x1 3484 | -7/Factory | Build established: Mutant 3633 | -7/Factory | Fabricated Lrn. Missile Launcher? 3836 | -7/Factory | Sucked down chute 3836 | -7/Factory | Entered Waste 3837 | -7/Waste | Build established: Gunner 4044 | -7/Waste | Spotted C-40 Crusher 4046 | -7/Waste | Spotted C-40 Crusher 4065 | -7/Waste | Spotted C-40 Crusher 4068 | -7/Waste | Spotted C-40 Crusher 4072 | -7/Waste | Spotted C-40 Crusher 4072 | -7/Waste | Spotted C-40 Crusher 4076 | -7/Waste | Crushed by Compactor (1 part destroyed, 2 dropped) 4077 | -7/Waste | Crushed by Compactor (1 part destroyed, 2 dropped) 4080 | -7/Waste | Crushed by Compactor (1 part destroyed, 1 dropped) 4080 | -7/Waste | Released all parts (5) 4083 | -7/Waste | Discovered new exit (range 16) 4111 | -7/Waste | Lost 4 parts (3n1w) 4120 | -7/Waste | Crushed by Compactor (1 part destroyed) 4126 | -7/Waste | Crushed by falling debris 4130 | -7/Waste | Warlord forces began an assault 4137 | -7/Waste | Allies destroyed C-40 Crusher 4174 | -7/Waste | Destroyed C-40 Crusher 4177 | -7/Waste | Allies destroyed C-40 Crusher 4184 | -7/Waste | Allies destroyed C-40 Crusher 4188 | -7/Waste | Allies destroyed C-40 Crusher 4190 | -7/Waste | Allies destroyed C-40 Crusher 4213 | -7/Waste | Lost 4 allies 4386 | -7/Waste | Entered Factory 4386 | -7/Factory | Accompanied by 2 allies 4550 | -7/Factory | Discovered new exit (range 8) 4554 | -7/Factory | Identified exit to Lower Caves 4670 | -7/Factory | Core integrity fell below 50% 4878 | -7/Factory | Fabricated Huge Storage Unit (x1) 5467 | -7/Factory | Entered Lower Caves 5711 | -7/Lower Caves | Encountered a Warlord checkpoint 5774 | -7/Lower Caves | Build established: Skirmisher 5890 | -7/Lower Caves | Discovered new exit (range 8) 5926 | -7/Lower Caves | Identified exit to Lower Caves 6097 | -7/Lower Caves | Entered another Lower Caves area 6756 | -7/Lower Caves | Attracted the attention of an 0b10 checkpoint 6881 | -7/Lower Caves | Discovered new exit (range 10) 6886 | -7/Lower Caves | Encountered a Warlord checkpoint 6920 | -7/Lower Caves | Identified exit to Zion 6932 | -7/Lower Caves | Entered Zion 6979 | -7/Zion | System corruption cleaned by Quarantine Array 7014 | -7/Zion | Learned Factory trap positions 7031 | -7/Zion | Learned Factory emergency access door positions 7107 | -7/Zion | Learned location of 1 exit from Factory 7239 | -7/Zion | Found CR-A16's Pointy Stick 7521 | -7/Zion | Learned Factory stockpile data 7607 | -7/Zion | Identified exit to Proximity Caves 7658 | -7/Zion | Found Prototype Device 7658 | -7/Zion | Identified Mobile Refinery Mk. CCLXVII 7782 | -7/Zion | Given A8's code to call for help 7823 | -7/Zion | Entered Proximity Caves 7825 | -6/Proximity Caves | Spotter reported a threat 8089 | -6/Proximity Caves | Lost 4 parts (1p2n1w) 8460 | -6/Proximity Caves | Discovered new exit (range 9) 8486 | -6/Proximity Caves | Identified exit to Factory 8487 | -6/Proximity Caves | Entered Factory 8487 | -6/Factory | Evolved 2 slots: Propulsion x1, Utility x1 8488 | -6/Factory | Identified exit to Factory 8489 | -6/Factory | Loaded intel: 84 trap records 8719 | -6/Factory | Fabricated Imp. Arc Projector (x2) 9122 | -6/Factory | Discovered new exit (range 4) 9246 | -6/Factory | Identified exit to Lower Caves 9293 | -6/Factory | Repaired Arm. Huge Wheel 9364 | -6/Factory | Discovered new exit (range 13) 9564 | -6/Factory | Identified exit to Extension 9566 | -6/Factory | Entered Extension 9897 | -6/Extension | Rescued A7 10169 | -6/Extension | Rescued a captive Derelict 10246 | -6/Extension | Build established: Hacker-Tank 10271 | -6/Extension | Spotted B-75 Beast 10276 | -6/Extension | Spotted B-75 Beast 10299 | -6/Extension | Destroyed B-75 Beast 10315 | -6/Extension | Allies destroyed B-75 Beast 10340 | -6/Extension | Lost 5 parts (1p2n2w) 10467 | -6/Extension | System corruption reached 10% 10508 | -6/Extension | Rescued a captive Derelict 10509 | -6/Extension | Rescued a captive Derelict 10744 | -6/Extension | Repaired Arm. Huge Wheel 10862 | -6/Extension | Discovered exit to Factory (range 10) 10863 | -6/Extension | Discovered new exit (range 6) 10875 | -6/Extension | Identified exit to Cetus 10915 | -6/Extension | Entered Cetus 10915 | -6/Cetus | Accompanied by 14 allies (A7) 10920 | -6/Cetus | Acquired a Cetus Manufacturing Module code from A7 10932 | -6/Cetus | Spotted Cetus Guard 10932 | -6/Cetus | Spotted Cetus Guard 10936 | -6/Cetus | Spotted Cetus Guard 10938 | -6/Cetus | Spotted Cetus Guard 10944 | -6/Cetus | Allies destroyed Cetus Guard 10947 | -6/Cetus | Destroyed Cetus Guard 10948 | -6/Cetus | Allies destroyed Cetus Guard 10952 | -6/Cetus | Allies destroyed Cetus Guard 10974 | -6/Cetus | Build established: Commander-Tank 11097 | -6/Cetus | Escorted A7 to Cetus Mainframe 11121 | -6/Cetus | Started Cetus Manufacturing Module 11146 | -6/Cetus | Manufactured an Enhanced Grunt 11171 | -6/Cetus | Manufactured an Enhanced Grunt 11196 | -6/Cetus | Manufactured an Enhanced Grunt 11221 | -6/Cetus | Manufactured an Enhanced Grunt 11246 | -6/Cetus | Manufactured an Enhanced Grunt 11327 | -6/Cetus | Discovered new exit (range 15) 11353 | -6/Cetus | Spotted Cetus Guard 11353 | -6/Cetus | Spotted Cetus Guard 11355 | -6/Cetus | Spotted Cetus Guard 11356 | -6/Cetus | Spotted Cetus Guard 11367 | -6/Cetus | Allies destroyed Cetus Guard 11373 | -6/Cetus | Allies destroyed Cetus Guard 11378 | -6/Cetus | Allies destroyed Cetus Guard 11380 | -6/Cetus | Allies destroyed Cetus Guard 11382 | -6/Cetus | Discovered exit to Factory (range 15) 11389 | -6/Cetus | Met Revision 17 11520 | -6/Cetus | Entered Archives 11520 | -6/Archives | Accompanied by 16 allies (A7) 11525 | -6/Archives | Received a hacking code to weaken MAIN.C 11570 | -6/Archives | Discovered new exit (range 15) 11574 | -6/Archives | Lost 3 allies 11595 | -6/Archives | Discovered new exit (range 16) 11747 | -6/Archives | Discovered exit to Factory (range 13) 12007 | -6/Archives | Entered Hub_04(d) 12007 | -6/Hub_04(d) | Accompanied by 12 allies 12029 | -6/Hub_04(d) | Discovered exit to Factory (range 13) 12075 | -6/Hub_04(d) | Found Prototype Device 12425 | -6/Hub_04(d) | Spotted B-75 Beast 12445 | -6/Hub_04(d) | Revealed the true nature of CR-A16's Pointy Stick 12448 | -6/Hub_04(d) | Destroyed B-75 Beast 12514 | -6/Hub_04(d) | Discovered exit to Factory (range 8) 12665 | -6/Hub_04(d) | Lost 3 allies 12771 | -6/Hub_04(d) | Network Hub disabled 12779 | -6/Hub_04(d) | Spotted Lightning 12803 | -6/Hub_04(d) | Spotted Lightning 12808 | -6/Hub_04(d) | Spotted Lightning 12826 | -6/Hub_04(d) | Lost 7 allies 12856 | -6/Hub_04(d) | Entered Factory 12856 | -5/Factory | Evolved 2 slots: Propulsion x1, Utility x1 12957 | -5/Factory | Build established: Scavenger-Tank 13611 | -5/Factory | Fabricated Enh. Quantum Rifle? 13793 | -5/Factory | Identified exit to Upper Caves 13849 | -5/Factory | Discovered new exit (range 6) 14135 | -5/Factory | Garrison activated, responded to threat 14656 | -5/Factory | First assault squad dispatched 14760 | -5/Factory | Entered Upper Caves 14777 | -5/Upper Caves | Lost 3 parts (1n1u1w) 14822 | -5/Upper Caves | Learned Factory emergency access door positions 15110 | -5/Upper Caves | Discovered new exit (range 12) 15126 | -5/Upper Caves | Identified exit to Upper Caves 15129 | -5/Upper Caves | Entered another Upper Caves area 15475 | -5/Upper Caves | Discovered new exit (range 7) 15483 | -5/Upper Caves | Identified exit to Warlord 15485 | -5/Upper Caves | Entered Warlord 15528 | -5/Warlord | System corruption reached 10% 15541 | -5/Warlord | System corruption cleaned by Quarantine Array 15782 | -5/Warlord | Visited the Vortex Lab 15790 | -5/Warlord | Warlord's base attacked by MAIN.C 15794 | -5/Warlord | Found Prototype Piercing Weapon 15796 | -5/Warlord | Found Prototype Energy Cannon 15803 | -5/Warlord | Found Prototype Energy Gun 15803 | -5/Warlord | Identified Vortex Rifle 15811 | -5/Warlord | Found Vortex Rifle 15818 | -5/Warlord | Found Prototype Energy Cannon 15892 | -5/Warlord | Met Warlord 16131 | -5/Warlord | Lost 3 allies 16140 | -5/Warlord | Warlord forces counterattacked 16204 | -5/Warlord | Lost 4 allies 16237 | -5/Warlord | Spotted Executioner 16246 | -5/Warlord | Destroyed Executioner 16273 | -5/Warlord | Discovered new exit (range 14) 16285 | -5/Warlord | Destroyed 8 combat bots 16291 | -5/Warlord | Identified exit to Proximity Caves 16291 | -5/Warlord | Spotted Executioner 16291 | -5/Warlord | Spotted Striker 16293 | -5/Warlord | Entered Proximity Caves 16297 | -4/Proximity Caves | Unaware initiated a cargo recovery operation 16369 | -4/Proximity Caves | Found Prototype Device 16369 | -4/Proximity Caves | Identified Exp. Shock Absorption System 16372 | -4/Proximity Caves | Found Prototype Device 16372 | -4/Proximity Caves | Identified Exp. Transmission Jammer 16574 | -4/Proximity Caves | Identified Vortex Cannon (x2) 16692 | -4/Proximity Caves | Learned Research stockpile data 16746 | -4/Proximity Caves | Discovered new exit (range 5) 16751 | -4/Proximity Caves | Identified exit to Factory 16762 | -4/Proximity Caves | Entered Factory 16762 | -4/Factory | Evolved 2 slots: Power x1, Utility x1 17109 | -4/Factory | Found Quantum Capacitor 17219 | -4/Factory | Build established: Scavenger-Skirmisher 17489 | -4/Factory | Garrison activated, responded to threat 17569 | -4/Factory | Build established: Scavenger-Tank 17650 | -4/Factory | Identified exit to Upper Caves 17650 | -4/Factory | Identified exit to Armory 17715 | -4/Factory | Garrison activated, responded to threat 17733 | -4/Factory | Spotted B-86 Titan 17764 | -4/Factory | Released all parts (8) 17794 | -4/Factory | Lost 11 parts (3p2n3u3w) 17808 | -4/Factory | Entered Upper Caves 17831 | -4/Upper Caves | Spotted B-86 Titan 17859 | -4/Upper Caves | Attracted the attention of an 0b10 outpost 17917 | -4/Upper Caves | Core integrity fell below 50% 17938 | -4/Upper Caves | Attracted the attention of an 0b10 checkpoint 17940 | -4/Upper Caves | Discovered new exit (range 7) 17947 | -4/Upper Caves | Entered another Upper Caves area 17975 | -4/Upper Caves | Attacked by a delusional Derelict stockpiling parts 18006 | -4/Upper Caves | Attracted the attention of an 0b10 checkpoint 18030 | -4/Upper Caves | Attracted the attention of an 0b10 base 18047 | -4/Upper Caves | Discovered new exit (range 13) 18052 | -4/Upper Caves | Entered Zhirov 18052 | -4/Zhirov | Discovered new exit (range 3) 18060 | -4/Zhirov | Met Zhirov 18068 | -4/Zhirov | Build established: Mutant 18069 | -4/Zhirov | Learned location of Quarantine (-3) 18069 | -4/Zhirov | Learned location of Testing (-2) 18069 | -4/Zhirov | Learned location of Command (-1) 18073 | -4/Zhirov | Zhirov requested help retrieving the SGEMP Prototype 18079 | -4/Zhirov | Found Alien Artifact 18079 | -4/Zhirov | Identified Integrated Reactor 18079 | -4/Zhirov | Installed Integrated Reactor, increased core energy generation (+10) 18086 | -4/Zhirov | Found Alien Artifact 18126 | -4/Zhirov | Entered Proximity Caves 18129 | -3/Proximity Caves | Spotter reported a threat 18149 | -3/Proximity Caves | Spotter reported a threat 18154 | -3/Proximity Caves | Core integrity fell below 20% 18163 | -3/Proximity Caves | Attracted the attention of an 0b10 checkpoint 18182 | -3/Proximity Caves | Spotter reported a threat 18208 | -3/Proximity Caves | Spotted B-86 Titan 18252 | -3/Proximity Caves | Spotter reported a threat 18266 | -3/Proximity Caves | Discovered new exit (range 4) 18267 | -3/Proximity Caves | Entered Research 18267 | -3/Research | Evolved 2 slots: Utility x2 18298 | -3/Research | Found Gamma Bomb Array 18467 | -3/Research | Revision forces began assault on 0b10 18539 | -3/Research | Met up with Revision 17++ 18772 | -3/Research | Identified exit to Quarantine 18967 | -3/Research | Research terminal network offline 18995 | -3/Research | Build established: Infiltrator-Mutant 19292 | -3/Research | Found Quantum Capacitor 19551 | -3/Research | Entered Quarantine 19744 | -3/Quarantine | Found Alien Reactor 19744 | -3/Quarantine | Identified Matter Drive 19789 | -3/Quarantine | Found Alien Slashing Weapon 19789 | -3/Quarantine | Identified Sigix Broadsword 20045 | -3/Quarantine | Found Alien Artifact 20200 | -3/Quarantine | Spotted Alpha 7 20224 | -3/Quarantine | Found Alien Impact Weapon 20224 | -3/Quarantine | Identified Core Stripper 20242 | -3/Quarantine | Destroyed Alpha 7 20252 | -3/Quarantine | Build established: Mutant 20317 | -3/Quarantine | Found Alien Launcher 20317 | -3/Quarantine | Identified Sigix Terminator 20419 | -3/Quarantine | System corruption reached 10% 20713 | -3/Quarantine | Discovered new exit (range 10) 20752 | -3/Quarantine | Build established: Scavenger-Mutant 20808 | -3/Quarantine | Found Alien Energy Cannon 20924 | -3/Quarantine | Found Alien Artifact 21057 | -3/Quarantine | Entered Research 21057 | -2/Research | Warlord forces began assault on 0b10 21057 | -2/Research | Evolved 2 slots: Power x1, Utility x1 21167 | -2/Research | Research machine network offline 21355 | -2/Research | Build established: Scavenger-Assassin 21638 | -2/Research | Borebot progress halted 21684 | -2/Research | Build established: Assassin 21800 | -2/Research | Spotted Striker 21800 | -2/Research | Spotted Executioner 21814 | -2/Research | Destroyed Striker 21853 | -2/Research | Found Prototype Launcher 21854 | -2/Research | Identified Ragnarok Missile Launcher 21856 | -2/Research | Spotted Striker 22056 | -2/Research | Borebot progress halted 22272 | -2/Research | Spotted Striker 22277 | -2/Research | Spotted Striker 22279 | -2/Research | Destroyed Striker 22283 | -2/Research | Destroyed Striker 22297 | -2/Research | Lost 3 allies 22353 | -2/Research | Borebot progress halted 22520 | -2/Research | Spotted Striker 22561 | -2/Research | Given Cave Seal Controls access code 22577 | -2/Research | Lost 6 allies 22787 | -2/Research | Discovered new exit (range 16) 22810 | -2/Research | Identified exit to Access 22816 | -2/Research | Entered Access 22816 | -1/Access | Evolved 2 slots: Utility x2 22919 | -1/Access | Garrison activated, responded to threat 22998 | -1/Access | Build established: Scavenger-Assassin 23677 | -1/Access | Build established: Hacker-Assassin 23761 | -1/Access | Destroyed 9 combat bots 24066 | -1/Access | First assault squad dispatched 24541 | -1/Access | Identified exit to Command 24843 | -1/Access | Spotted B-99 Colossus 24991 | -1/Access | Build established: Hacker-Mutant 25296 | -1/Access | Identified Core Cannon 25318 | -1/Access | Entered Command 25645 | -1/Command | Build established: Mutant 25818 | -1/Command | First assault squad dispatched 25980 | -1/Command | Destroyed 7 combat bots 25998 | -1/Command | Spotted M Guard 25998 | -1/Command | Spotted Combat Programmer 26002 | -1/Command | Spotted M Guard 26002 | -1/Command | Spotted Combat Programmer 26013 | -1/Command | System corruption reached 10% 26034 | -1/Command | Destroyed Combat Programmer 26057 | -1/Command | Destroyed Combat Programmer 26081 | -1/Command | Destroyed M Guard 26087 | -1/Command | Destroyed M Guard 26087 | -1/Command | All MAIN.C guards destroyed 26099 | -1/Command | Crushed by falling debris 26099 | -1/Command | System corruption reached 30% 26130 | -1/Command | Lost 14 parts (3p4n6u1w) 26275 | -1/Command | Disengaged cave seal 26275 | -1/Command | Derelicts emerged from the dark tunnel 26276 | -1/Command | Welcomed Warlord to Command 26592 | -1/Command | Warlord commented on Warlord statues 26856 | -1/Command | Met MAIN.C 26856 | -1/Command | Hacked MAIN.C using A7's code 26895 | -1/Command | 0b10 Conduit disabled 26897 | -1/Command | MAIN.C activated Command garrisons 26941 | -1/Command | Lost 16 allies 26947 | *** | Establishing Free Derelict Territories! Last Messages --------------- 26941_ Blast Slug penetrates MAIN.C. 26941_ MAIN.C knocked back. 26942_ MAIN.C suffers critical hit (Burn). 26942_ MAIN.C reaction time slowed by virus. 26943_ HV Slug penetrates MAIN.C. 26943_ MAIN.C suffers critical hit (Destroy). 26943_ HV Slug penetrates Reinforced Barrier. 26943_ MAIN.C reaction time slowed by virus. 26944_ Blast Slug penetrates 0b10 Conduit. 26944_ Blast Slug penetrates MAIN.C. 26944_ Penetrated by Blast Slug. 26944_ Knocked back. 26944_ MAIN.C reaction time slowed by virus. 26945_ MAIN.C: "I hope you know you're still going to DIE HERE WITH ME!" Heavy Barrier opened. 26945_ MAIN.C destroyed. ZY-L1N: Victory! Sure there's still lots to do, but without MAIN.C at the helm 0b10 doesn't stand a chance. We've got this... Map ----- +----------------------------------------------------+ | ?????????????????????????????????????????????????? | | ?????????????????????????????????????????????????? | | ?????????????????????????????????????????????????? | | ?????????????????????????????????????????????????? | | ??????????????????????????####################???? | | ?????????????????????????"""""" """" #???? | | ???????????????????????#"" "" [[#???? | | ???????????????????????#""""" "" [%=##### | | ???????????????????????#""""""""""" !! %=!%[ | | ???????????????????????#" " """ ![ %%[= | | ???????????????????????#"" """"" % %* | | ???????????????????????#"" """""" %*##### | | ???????????????????????# " """""" % ![#???? | | ???????????????????????# " #???? | | ???????????????????????# " % ""#???? | | ???????????????????????#""" " " !% """""#???? | | ???????????????????????#"" """"""#???? | | ???????????????????????# % """""""#???? | | ???????????????????????# h / " " #???? | | ?????????????????????### h " " #???? | | ????????????????????? hg " " """" " #???? | | ?????????????????????? W " """" #???? | | ??????????????????????? g " " " #???? | | ???????????????????????# """"" " #???? | | ???????????????????????# " " """"""""#???? | | ???????????????????????# @$ """ " " " #???? | | ???????????????????????#######################???? | | ?????????????????????????????????????????????????? | | ?????????????????????????????????????????????????? | | ?????????????????????????????????????????????????? | | ?????????????????????????????????????????????????? | | ?????????????????????????????????????????????????? | | ?????????????????????????????????????????????????? | | ?????????????????????????????????????????????????? | | ?????????????????????????????????????????????????? | | ?????????????????????????????????????????????????? | | ?????????????????????????????????????????????????? | | ?????????????????????????????????????????????????? | | ?????????????????????????????????????????????????? | | ?????????????????????????????????????????????????? | | ?????????????????????????????????????????????????? | | ?????????????????????????????????????????????????? | | ?????????????????????????????????????????????????? | | ?????????????????????????????????????????????????? | | ?????????????????????????????????????????????????? | | ?????????????????????????????????????????????????? | | ?????????????????????????????????????????????????? | | ?????????????????????????????????????????????????? | | ?????????????????????????????????????????????????? | | ?????????????????????????????????????????????????? | +----------------------------------------------------+ Best States ------------- Heat Dissipation 166 Energy Generation 83 Energy Capacity 850 Matter Stores 300 Matter Capacity 300 Sight Range 23 Robot Scan Range 18 Terrain Scan Range 20 Terrain Scan Density 210 Jamming Range 22 Base Temperature (-) 200 Armor Coverage 2700 Resistance: TH 15 Resistance: EX 75 Utility Shielding 33 Weapon Shielding 66 Point Defense Rating 400 Phase Shifting 5 Evasion (%) 70 Targeting Accuracy 8 Target Analysis 8 Recoil Reduction 6 Force Boost 20 Offensive Hacking 24 Defensive Hacking 14 Item Schematics ----------------- Huge Storage Unit | -10/Mines | Hacked Enh. Gauss Cannon | -7/Factory | Scanalyzed Imp. EM Pulse Cannon | -7/Zion | Archive Imp. Particle Charger | -7/Zion | Archive Thermic Laser | -7/Zion | Archive Imp. Cooling System | -7/Zion | Archive Gauss Rifle | -7/Zion | Archive Imp. Shock Absorption System | -7/Zion | Archive Hvy. Plasma Cannon | -7/Zion | Archive EM Disruption Field | -7/Zion | Archive Microactuators | -7/Zion | Archive Hvy. Machine Gun | -7/Zion | Archive Gatling Laser | -7/Zion | Archive Imp. Component Analysis Suite | -7/Zion | Archive Imp. Shield Generator | -7/Zion | Archive Imp. Reaction Control System | -7/Zion | Archive Tiamat Missile Launcher | -7/Zion | Archive Assault Drone Bay | -4/Zhirov | Free Exp. Heat Sink | -4/Zhirov | Free Imp. Arc Thrower | -4/Zhirov | Free Exp. Optical Array | -4/Zhirov | Free Robot Schematics ------------------ B-48 Gladiator | -7/Zion | Archive K-01 Serf | -7/Zion | Archive T-07 Excavator | -7/Zion | Archive Fabricated ------------ Lrn. Missile Launcher | x1 | -7/Factory | Preloaded Huge Storage Unit | x1 | -7/Factory Imp. Arc Projector | x2 | -6/Factory | Preloaded Enh. Quantum Rifle | x2 | -5/Factory | Preloaded Repaired ---------- Arm. Huge Wheel | 20% | -6/Factory Arm. Huge Wheel | 53% | -6/Extension Alien Tech Used ----------------- Integrated Reactor Matter Drive Sigix Broadsword Core Stripper Sigix Terminator Core Cannon Achievements -------------- Poison In The Code Challenges ------------ None Game ------ Seed SchematicMissileRegenerator Manual? 0 Play Time 05:03:13 Cumulative 109.2 hours Start 2025.07.03 @ 11:50:07 End 2025.07.03 @ 18:53:12 Sessions 3 Manual Loads 0 Difficulty Rogue Special Mode None Game No. 69 Rogue 69 Adventurer 0 Explorer 0 Win Type 7 Total 10 Types 2/1/3/1/1/0/0/1/0/1 Lore% 62 Gallery% 59 Achievement% 60 Wizard Run 0 Options --------- Layout 0 ASCII 0 Keyboard 1 Movement Vi Keybinds 0 Fullscreen 2 Font 18/SmallcapsGlow Map View 76x50 Zoom Use 0% Tactical HUD 1 Map Filters NONE Filters NONE Steam 1 RUN: a99e5a76-4e5c-4fea-9a04-6f47d6864910